Cogmind - Beta 16.1 @@@ ROGUE MODE // 2026.03.28 @ 22:08:06 Player: KURIIRI Result: Destroyed by H-88 Terminator with KE Penetrator Performance ------------- Evolutions (9) 4500 Regions Visited (26) 5200 Robots Destroyed (468) 2340 Value Destroyed (21466) 21466 Prototype IDs (82) 1640 Alien Tech Used (2) 400 Bonus (8986) 8986 TOTAL SCORE: 44532 Bonus ------- High Alert Combat Kills 2646 Follower Combat Kills 2934 Hunted by Unchained 500 Network Hubs Disabled 200 Registered with UFD 300 Met Optimus in HQ 500 Met Zhirov 300 MAIN.C Attacked Warlord 500 Built Enhanced Grunts 300 A7 Reached Mainframe 300 Met R17 at Cetus 500 Met R17 at Research 2000 Scanned by Researcher 500 Friendly Fire -2494 Cogmind --------- Core Integrity 0/1600 Matter 214/300 Energy 92/100 System Corruption 4% Temperature Cool (0) Movement Core (100) Ox1 Location -1/Access Parts ------- > --- POWER (2) -------- (None) > --- PROPULSION (6) --- (None) > --- UTILITY (12) ----- Advanced Signal Interpreter Advanced Terrain Scan Processor Advanced Target Analyzer Advanced Target Analyzer > --- WEAPON (6) ------- Vibroblade > --- INVENTORY (5) ---- Centrium Leg Advanced Cooling System Vortex Driver (30) Peak State ------------ > --- POWER ------------ Compact Particle Reactor Zero-point Reactor > --- PROPULSION ------- Biometal Heavy Treads Centrium Wheel Centrium Wheel > --- UTILITY ---------- Experimental Coolant Injector Large Storage Unit Advanced Energy Well Experimental Signal Interpreter Experimental Targeting Computer Experimental Targeting Computer Advanced Target Analyzer Experimental Core Analyzer Thermal Barrier Hacking Suite Experimental Hacking Suite Improved Component Analysis Suite > --- WEAPON ----------- Potential Cannon Cooled Nova Cannon Coil Gun Heavy Machine Gun Railgun > --- INVENTORY -------- Zero-point Reactor Advanced Cooling System Experimental Cooling System Experimental Cooling System Improved Matter Compressor Improved Terrain Scanner Vortex Driver Hypervelocity Railgun Helical Railgun Tesla Bomb Launcher Advanced Datajack [Rating: 191] Favorites ----------- Power Heavy Antimatter Reactor Engine Ion Engine Power Core Fission Core Reactor Heavy Antimatter Reactor Propulsion Overtuned Huge Scrapsphere Treads Heavy Siege Treads Leg Aluminum Leg Wheel Overtuned Huge Scrapsphere Hover Unit Combat Airjet Flight Unit Cooled Field Propulsion Drive Utility Large Storage Unit Device Scrap Suit Storage Large Storage Unit Processor Advanced Targeting Computer Hackware Improved Hacking Suite Protection Layered Heavy Armor Plating Weapon Coil Gun Energy Gun Beamcaster Energy Cannon Subdweller Beam Cannon Ballistic Gun Coil Gun Ballistic Cannon Hardcell Cannon Launcher Tesla Bomb Launcher Special Weapon Multitool Impact Weapon Power Maul Slashing Weapon Makeshift Axe Piercing Weapon Plasma Lance Build | -11 -10 -10 -8 -6 -6 -6 -6 -6 -5 -5 -5 -5 -5 -5 -4 -4 -4 -4 -4 -4 -4 -3 -3 -3 -2 -1 ------- Run | Yrd Mat Sub Scr Fac Ext Cet Arc Hub Fac Was Fac Upp Upp Zhi Pro Fac Was Fac Upp Upp War Pro Res Tes Res Acc Slots Evolved 18 | . . . . 8 . . . . 2 . . . . . . 2 . . . . . . 2 . 2 2 Power 1 | . . . . . . . . . . . . . . . . . . . . . . . . . 1 . Propulsion 4 | . . . . 1 . . . . 1 . . . . . . . . . . . . . . . . 2 Utility 9 | . . . . 5 . . . . 1 . . . . . . . . . . . . . 2 . 1 . Weapon 4 | . . . . 2 . . . . . . . . . . . 2 . . . . . . . . . . Parts Attached 294 | 1 11 11 8 31 20 6 2 1 9 3 8 5 7 6 3 17 10 7 3 3 10 1 47 21 23 20 Power 26 | . . 1 3 2 1 . 1 . . 1 2 . . 1 . 1 . . . . . . 5 1 4 3 Engine 3 | . . 1 1 1 . . . . . . . . . . . . . . . . . . . . . . Core 7 | . . . 2 1 1 . 1 . . . 1 . . . . . . . . . . . . . . 1 Reactor 16 | . . . . . . . . . . 1 1 . . 1 . 1 . . . . . . 5 1 4 2 Propulsion 47 | . 2 3 2 5 2 1 . . . . . . 2 2 1 3 1 1 1 . . . 6 3 5 7 Treads 20 | . 2 2 2 2 . 1 . . . . . . 2 2 1 . 1 1 1 . . . 1 . 2 . Leg 2 | . . . . . . . . . . . . . . . . . . . . . . . . . . 2 Wheel 14 | . . 1 . . 2 . . . . . . . . . . 3 . . . . . . 3 3 1 1 Hover 8 | . . . . 3 . . . . . . . . . . . . . . . . . . 2 . . 3 Flight 3 | . . . . . . . . . . . . . . . . . . . . . . . . . 2 1 Utility 116 | 1 2 1 . 13 7 3 1 1 6 2 3 4 2 1 1 8 5 6 2 2 4 . 20 8 6 7 Device 61 | 1 1 . . 8 6 2 . . 1 2 1 2 1 . 1 6 4 2 2 2 2 . 8 5 1 3 Storage 7 | . 1 . . . . . . . 1 . . . . 1 . . . 1 . . . . 1 1 1 . Processor 22 | . . . . 2 . . . 1 2 . 2 . . . . 1 . 1 . . 1 . 6 1 1 4 Hackware 9 | . . . . 2 . . 1 . 1 . . . . . . . . 2 . . . . 1 . 2 . Protection 17 | . . 1 . 1 1 1 . . 1 . . 2 1 . . 1 1 . . . 1 . 4 1 1 . Artifact . | . . . . . . . . . . . . . . . . . . . . . . . . . . . Weapon 105 | . 7 6 3 11 10 2 . . 3 . 3 1 3 2 1 5 4 . . 1 6 1 16 9 8 3 Energy Gun 18 | . . 1 1 1 1 1 . . . . . . 2 . 1 2 . . . . 1 . 4 1 2 . Energy Cannon 17 | . 3 1 1 1 . . . . . . . . . 1 . . . . . . 1 1 2 4 . 2 Ballistic Gun 51 | . 4 4 1 4 5 1 . . 3 . 3 1 . 1 . 2 3 . . 1 3 . 7 3 5 . Ballistic Cannon 6 | . . . . 3 . . . . . . . . 1 . . 1 . . . . . . . . 1 . Launcher 3 | . . . . 1 . . . . . . . . . . . . . . . . . . 2 . . . Special Weapon 4 | . . . . . 1 . . . . . . . . . . . 1 . . . 1 . 1 . . . Impact Weapon 2 | . . . . . 2 . . . . . . . . . . . . . . . . . . . . . Slashing Weapon 3 | . . . . 1 1 . . . . . . . . . . . . . . . . . . . . 1 Piercing Weapon 1 | . . . . . . . . . . . . . . . . . . . . . . . . 1 . . Special Melee Weapon . | . . . . . . . . . . . . . . . . . . . . . . . . . . . Unidentified Prototypes 48 | . . . . 4 . 4 . . 1 1 1 1 . 3 . 1 . . 1 1 6 . 11 9 3 1 Corrupted Parts 1 | . . . . . . . . . . . . . . . . . . . . . . . . 1 . . System Corruption 6 | . . . . . . . . . . . . . . . . . . . . . . . . 6 . . Parts Lost 86 | . . 3 . 4 2 . 3 1 2 . 3 2 6 . 1 6 . . . 1 . 4 10 4 21 13 Power 8 | . . 1 . 1 . . 1 . . . 1 . . . . . . . . . . . . . 3 1 Propulsion 17 | . . 2 . . . . 1 . . . . . 2 . . . . . . . . . 2 1 3 6 Utility 26 | . . . . 1 2 . 1 . 1 . 1 2 . . . 3 . . . 1 . 1 4 . 4 5 Weapon 35 | . . . . 2 . . . 1 1 . 1 . 4 . 1 3 . . . . . 3 4 3 11 1 Highest Loss Streak 10 | . . 2 . 3 1 . 3 1 1 . 3 2 4 . 1 4 . . . 1 . 2 7 1 10 6 To Critical Strikes 2 | . . . . . . . . . . . . . . . . . . . . . . . . 1 1 . Average Backups 12 | 6 10 13 11 12 13 12 12 12 13 14 14 14 14 14 14 13 13 12 11 12 13 12 12 12 12 3 Power 1 | 1 1 1 . 1 1 1 . 1 1 1 1 1 . . . . 1 . 1 1 1 1 . 1 1 . Propulsion 1 | 4 4 2 . 2 1 1 1 1 . . . . . . 1 . . . 1 1 1 1 . . . . Utility 5 | . 1 2 5 3 4 5 5 5 6 6 7 8 7 9 7 7 9 8 6 6 6 6 6 7 6 1 Weapon 3 | 1 4 7 4 1 4 4 4 4 3 4 4 3 3 3 3 2 1 1 1 2 3 2 2 3 4 1 Tool/Special . | . . . . . . . . . . . . . . . . . . . . . . . . . . . Unused Backups 53 | 6 . 3 8 4 4 3 1 . 1 1 2 . 1 1 1 5 . 1 . . . . 3 4 2 2 Power 5 | 1 . 1 1 1 . . . . . . . . 1 . . . . . . . . . . . . . Propulsion 9 | 2 . 2 1 . 1 1 . . . . . . . . . . . . . . . . 1 1 . . Utility 22 | 1 . . 3 1 2 . . . 1 1 1 . . 1 1 3 . 1 . . . . 1 2 2 1 Weapon 15 | 2 . . 3 1 1 2 1 . . . 1 . . . . 2 . . . . . . 1 1 . . Tool/Special 2 | . . . . 1 . . . . . . . . . . . . . . . . . . . . . 1 Average Slot Usage (%) 86 | . 99 91 97 90 89 85 75 79 79 82 81 82 84 85 87 82 81 84 89 85 84 79 82 87 83 32 Engine 1 | . 14 3 10 4 . . . . . . . . . . . . . . . . . . . . . . Core 1 | . . . 1 3 6 6 6 6 5 . . 5 5 1 . . . . . . . . . . . . Reactor 2 | . . . . . . . . . . 4 4 . . 3 5 5 5 5 5 5 5 5 4 4 6 1 Treads 7 | . 27 14 11 8 10 . . . 5 5 5 5 7 5 7 5 4 5 9 10 10 10 1 . 2 . Wheel 5 | . . 8 10 . 5 12 7 6 5 5 5 5 5 5 2 4 5 5 . . . . 9 11 9 2 Device 13 | . 14 2 . 14 19 20 20 20 16 11 9 4 7 11 16 11 20 15 22 16 14 18 11 12 8 3 Storage 6 | . 14 11 10 5 6 6 6 6 5 5 5 5 5 5 5 5 5 5 5 5 5 5 4 4 4 . Processor 6 | . . . . . . . . 4 4 5 6 11 11 11 5 7 5 6 10 10 10 10 13 18 19 7 Hackware 6 | . . . . 12 12 6 1 6 5 11 11 11 11 11 11 8 5 7 5 5 5 5 4 4 7 2 Protection 3 | . . 8 10 3 . 6 6 1 4 5 5 5 4 5 5 5 . . . 3 5 1 4 3 2 . Energy Gun 2 | . . 4 2 2 . . . . 2 . . . 4 7 8 10 6 . . . . . 4 2 . . Energy Cannon 1 | . 4 5 7 1 . . . . . . . . . 2 5 3 . . . . . . . 4 5 1 Ballistic Gun 21 | . 23 31 30 14 23 24 20 25 18 18 22 23 14 8 5 8 17 30 27 28 28 21 14 13 12 . Impact Weapon 1 | . . . . . 1 . . . . 3 . . . . . . . . 2 1 . 2 4 3 . . Peak Build Rating 191 | 9 10 25 43 87 74 86 81 81 108 112 107 107 102 101 111 121 112 104 116 116 129 128 153 169 191 108 Average Rating 91 | 6 9 20 28 72 69 80 75 79 103 104 105 104 93 94 106 111 106 101 111 112 122 113 133 155 152 67 On Entrance 83 | 6 9 10 25 43 66 69 80 81 74 103 107 103 101 87 101 111 107 102 102 116 113 127 106 147 146 14 Avg Prop Armor Cover (%) 7 | . . 8 8 7 . 2 2 . 7 9 8 3 5 8 9 10 9 9 11 . . . 2 2 4 20 Naked Turns 14 | . . . . . . . . . . . . . . . . . . . . . . . . . 14 . Heaviest Build 124 | 14 32 45 55 74 63 66 65 65 70 67 67 64 61 75 78 104 82 75 74 93 96 96 124 107 112 46 Greatest Support 145 | 20 40 40 40 64 64 80 20 20 80 20 80 80 80 70 145 145 40 70 140 140 140 140 140 52 103 50 Greatest Overweight (x) 6 | . . 4 5 6 2 3 3 3 3 3 3 3 3 3 3 5 3 3 3 . . . 6 6 3 2 Average Overweight (x) 1 | . . 2 3 . . 2 2 2 2 3 2 . 1 2 1 1 2 2 . . . . 1 2 1 . Largest Inventory Capacity 15 | 8 15 15 15 15 15 15 15 15 15 15 15 15 15 15 15 15 15 15 15 15 15 15 15 15 15 5 Average Capacity 14 | 8 12 15 15 15 15 15 15 15 15 15 15 15 15 15 15 15 15 15 15 15 15 15 15 15 14 5 Most Carried 15 | 6 15 15 15 15 15 15 15 15 15 15 15 15 15 15 15 15 15 15 15 15 15 15 15 15 15 5 Average Carried 14 | 6 10 14 13 13 14 14 14 14 14 14 14 14 14 14 14 14 14 14 13 13 14 13 14 14 12 3 Final Capacity 15 | 8 15 15 15 15 15 15 15 15 15 15 15 15 15 15 15 15 15 15 15 15 15 15 15 15 5 5 Final Carried 15 | 6 15 15 15 12 15 15 14 15 15 15 13 13 15 15 15 15 15 15 15 13 15 13 15 15 5 3 Scrap Suit Usage (%) 33 | . . . . 69 62 19 100 100 93 91 93 . . . . 15 57 34 1 . . . 55 32 . . Parts Cannibalized 23 | . . . . 9 2 . . . 5 . . . . . . . . 4 . . . . 3 . . . Class Distribution -------------------- 19% | Scavenger-Scrapper 18% | Scavenger-Executioner 13% | Gunner 8% | Derelict-Executioner 7% | Hacker-Gunner 7% | Mutant 4% | Executioner 4% | Scavenger-Tank 3% | Scavenger-Gunner Dominant Class ---------------- Mutant | -10/Materials Gunner | -10/Subcaves Gunner | -8/Scraptown Hacker-Gunner | -6/Factory Hacker-Gunner | -6/Extension Scavenger-Scrapper | -6/Cetus Scavenger-Scrapper | -6/Archives Scavenger-Scrapper | -6/Hub_04(d) Scavenger-Scrapper | -5/Factory Scavenger-Scrapper | -5/Waste Scavenger-Scrapper | -5/Factory Hacker-Skirmisher | -5/Upper Caves Scavenger-Gunner | -5/Upper Caves Scavenger-Tank | -5/Zhirov Scavenger-Tank | -4/Proximity Caves Scavenger-Executioner | -4/Factory Scavenger-Executioner | -4/Waste Scavenger-Executioner | -4/Factory Derelict-Executioner | -4/Upper Caves Derelict-Executioner | -4/Upper Caves Executioner | -4/Warlord Executioner | -3/Proximity Caves Scavenger-Executioner | -3/Research Scavenger-Executioner | -3/Testing Scavenger-Executioner | -2/Research Mutant | -1/Access Resources | -11 -10 -10 -8 -6 -6 -6 -6 -6 -5 -5 -5 -5 -5 -5 -4 -4 -4 -4 -4 -4 -4 -3 -3 -3 -2 -1 ----------- Run | Yrd Mat Sub Scr Fac Ext Cet Arc Hub Fac Was Fac Upp Upp Zhi Pro Fac Was Fac Upp Upp War Pro Res Tes Res Acc Matter Collected 19906 | 232 362 630 77 1712 2737 381 43 52 1347 251 951 503 521 173 569 1085 1326 1086 113 458 50 873 1429 2149 665 131 Remotely . | . . . . . . . . . . . . . . . . . . . . . . . . . . . Salvage Created 26804 | 111 783 832 . 1782 2951 452 440 82 1040 760 1609 416 837 221 194 1965 1442 1546 77 365 . 624 1672 3886 2511 206 Parts 1248 | 5 60 66 . 73 109 28 26 4 62 5 87 14 49 16 7 70 41 67 3 9 . 45 63 215 110 14 Haulers Intercepted 8 | . 2 . . 1 1 . . . . . 1 . . . . 1 . . . . . . 2 . . . Recyclers Shooed 10 | . 1 . . 3 1 . . . 1 . . . . . . 2 . 1 . . . . . 1 . . Parts Field Recycled . | . . . . . . . . . . . . . . . . . . . . . . . . . . . Retrieved Matter . | . . . . . . . . . . . . . . . . . . . . . . . . . . . Parts Self-Destructed 141 | . . 13 . . . . . . . . . 14 39 13 7 . . . 2 8 . 45 . . . . Prevented . | . . . . . . . . . . . . . . . . . . . . . . . . . . . Parts Restored . | . . . . . . . . . . . . . . . . . . . . . . . . . . . Kills | -11 -10 -10 -8 -6 -6 -6 -6 -6 -5 -5 -5 -5 -5 -5 -4 -4 -4 -4 -4 -4 -4 -3 -3 -3 -2 -1 ------- Run | Yrd Mat Sub Scr Fac Ext Cet Arc Hub Fac Was Fac Upp Upp Zhi Pro Fac Was Fac Upp Upp War Pro Res Tes Res Acc Combat Hostiles Destroyed 349 | . 17 23 . 28 34 6 4 1 18 . 20 7 18 . 4 22 6 24 1 7 . 14 19 38 35 3 Melee 3 | . . . . . . . . . . . . . . . . . . . . . . . . 2 . 1 Guns 271 | . 16 17 . 11 34 6 4 1 16 . 19 7 17 . 4 13 4 24 1 7 . 14 17 23 16 . Cannons 56 | . 1 6 . 14 . . . . . . . . 1 . . 8 2 . . . . . 2 10 11 1 AOE 10 | . . . . . . . . . 2 . 1 . . . . . . . . . . . . . 7 . Classes Destroyed 28 | 2 6 2 . 4 5 . . . . . . . 1 . 2 . 1 . . . . . 2 3 . . Worker 22 | . 1 . . 3 1 . . . 1 . 2 . . . . 1 . 4 . . . . . 9 . . Builder 21 | . 1 . . 3 1 . . . 1 . 3 . . . . 1 . . . . . . 2 8 1 . Tunneler 3 | 1 . . . 1 . . . . . . . . . . . 1 . . . . . . . . . . Hauler 8 | . 2 . . 1 1 . . . . . 1 . . . . 1 . . . . . . 2 . . . Recycler 18 | 1 2 . . 2 4 . . . . . 2 . . . . 1 . . . . . . 2 2 2 . Mechanic 3 | . . . . . 2 . . . . . . . . . . . . 1 . . . . . . . . Operator 9 | . . . . . 3 . . 1 . . . . . . . . . 1 . . . . . 3 1 . Drone 4 | . . . . . . . . . . . . . . . 2 . . . . . . 2 . . . . Watcher 21 | . 3 . . 2 3 1 . . 3 . 2 . . . . 2 . 1 . . . . . 3 1 . Swarmer 78 | . 12 7 . 4 5 . . . 5 . 8 . 8 . . . . 8 . 5 . 5 1 . 10 . Saboteur 1 | . . . . . . . . . . . . . . . . . . . . . . . . 1 . . Grunt 112 | . 5 . . 17 19 . 4 . 4 . 3 5 . . . 10 . 10 . . . 1 12 13 9 . Brawler 5 | . . . . 2 . . . . . . . 1 . . . 1 . . . . . . . . 1 . Duelist 9 | . . . . 2 3 . . . . . 1 . . . . . . . . . . . . . 3 . Researcher 3 | . . . . . . . . . . . . . . . . . . . . . . . . 3 . . Sentry 28 | . . . . 1 5 . . 1 4 . 3 1 1 . 1 5 . 2 1 . . . . . 3 . Demolisher 2 | . . . . . 1 . . . . . . . . . . . . . . . . . 1 . . . Specialist 1 | . . . . . . . . . . . . . . . . . . . . . . . . 1 . . Hunter 24 | . . . . . 1 . . . 2 . 1 . 4 . . 2 . . . . . 2 . 8 3 1 Programmer 39 | . . . . 2 . . . . 3 . 3 . 1 . . 2 . 3 . . . 3 . 15 5 2 Behemoth 7 | . . . . . . . . . . . . . . . 1 2 . 1 . 1 . 1 . . 1 . Compactor 6 | . . . . . . . . . . . . . . . . . 6 . . . . . . . . . Cetus Guard 6 | . . . . . . 6 . . . . . . . . . . . . . . . . . . . . Investigator 1 | . . . . . . . . . . . . . . . . . . . . . . . . 1 . . Striker 3 | . . . . . . . . . . . . . . . . . . . . . . . 3 . . . Executioner 2 | . . . . . . . . . . . . . . . . . . . . . . . 2 . . . Artisan 2 | . . 2 . . . . . . . . . . . . . . . . . . . . . . . . Subdweller 16 | . . 16 . . . . . . . . . . . . . . . . . . . . . . . . Scrapoid 2 | . . . . . 1 . . . . . . . . . . 1 . . . . . . . . . . Wasp 2 | . . . . . . . . . . 1 . . . . . . 1 . . . . . . . . . Thug 4 | . . . . . 1 . . . . . 2 . 1 . . . . . . . . . . . . . Butcher 2 | . . . . . . . . . . . . . 2 . . . . . . . . . . . . . Martyr 4 | . . . . . . . . . . 2 . . . . . . 2 . . . . . . . . . Mutant 2 | . . . . . . . . . . . . . 1 . . . . . . 1 . . . . . . Best Kill Streak 18 | 1 6 7 . 6 5 5 4 1 5 . 8 6 6 . 3 8 1 9 1 5 . 5 6 16 18 2 Combat Bots Only 15 | . 6 7 . 4 5 4 4 1 5 . 5 6 6 . 3 6 1 6 1 5 . 5 6 6 15 2 Max Kills in Single Turn 4 | 1 2 2 . 2 2 2 3 1 2 1 3 2 2 . 1 2 2 3 1 2 . 2 2 3 4 1 Gunslinging 2 | . 1 1 . 1 1 1 . . 1 . 1 1 1 . . 1 . 2 . 1 . 1 1 1 . . Exploded 3 | . . . . . . . . . 2 . 1 . . . . . . . . . . . . . 3 . Melee 1 | . . . . . . . . . . . . . . . . . . . . . . . . 1 . 1 Uniques/NPCs Destroyed . | . . . . . . . . . . . . . . . . . . . . . . . . . . . Combat | -11 -10 -10 -8 -6 -6 -6 -6 -6 -5 -5 -5 -5 -5 -5 -4 -4 -4 -4 -4 -4 -4 -3 -3 -3 -2 -1 -------- Run | Yrd Mat Sub Scr Fac Ext Cet Arc Hub Fac Was Fac Upp Upp Zhi Pro Fac Was Fac Upp Upp War Pro Res Tes Res Acc Hostile Shots Fired 2101 | . 66 89 . 142 133 9 6 26 54 . 88 40 91 . 11 121 . 93 . 68 . 90 151 233 373 217 Missed 624 | . 16 28 . 51 58 2 1 5 18 . 18 6 24 . 5 36 . 25 . 11 . 21 33 90 106 70 Hits 1477 | . 50 61 . 91 75 7 5 21 36 . 70 34 67 . 6 85 . 68 . 57 . 69 118 143 267 147 Melee 34 | . . . . 8 . . . . . . 5 1 6 . . . . . . . . . 6 . 8 . Projectile 1443 | . 50 61 . 83 75 7 5 21 36 . 65 33 61 . 6 85 . 68 . 57 . 69 112 143 259 147 AOE 8 | . . . . . 2 . . . . . . . . . . 2 . . . . . . 3 1 . . Critical Strikes 60 | . 2 . . 2 3 . . 1 2 . 5 1 4 . 1 2 . 5 . 2 . 5 4 10 8 3 Part Disruptions 3 | . . . . . . . . . . . . . 1 . . . . . . . . 1 . 1 . . Damage Taken 29530 | . 464 840 . 1699 1154 146 343 332 1282 . 1693 698 1342 . 200 2141 . 1627 . 898 . 1711 2824 2175 5104 2857 Core 4532 | . 60 154 . 43 68 . 60 11 176 . 171 18 110 . 38 153 . 155 . 30 . 25 339 193 1126 1602 Absorbed by Shields 316 | . . . . . 117 94 . . . . . . . . . . . . . . . . . 63 . 42 Reduced by Siege Mode 1152 | . . . . . . . . . 12 . 44 46 53 . . 65 . 106 . 172 . 268 184 . 202 . Ignored by Resistances 1928 | . . . . . . . . . . . . . . . . . . . . . . . 387 328 1213 . Regen/Repaired (Parts) 2659 | . . . 183 63 20 . . . 506 62 452 . . . . 131 21 516 . . 402 . 25 . 278 . Core Remaining (%) 55 | 100 . . 14 . . . . 78 . . . . . . 48 . . . . . . 68 . 59 22 . Volleys Fired 923 | 8 50 66 . 89 98 17 7 6 48 12 54 11 38 12 12 53 41 40 1 20 . 24 46 91 67 12 Largest 6 | 2 2 4 . 4 4 4 3 4 4 4 4 4 4 4 4 6 6 6 5 6 . 6 5 6 6 1 Hottest 390 | 40 120 156 . 179 176 240 96 131 240 128 131 126 224 235 240 383 345 192 162 189 . 265 390 290 350 120 Shots Fired 3341 | 16 100 191 . 273 363 56 21 24 141 47 199 45 116 19 38 260 219 234 5 91 . 115 200 357 199 12 Gun 2919 | 16 82 170 . 173 362 56 21 24 141 47 199 45 115 7 20 166 186 234 5 91 . 112 188 303 156 . Cannon 384 | . 18 21 . 92 . . . . . . . . 1 1 18 94 31 . . . . 3 12 43 38 12 Launcher 17 | . . . . 8 1 . . . . . . . . . . . . . . . . . . 3 5 . Special 21 | . . . . . . . . . . . . . . 11 . . 2 . . . . . . 8 . . Kinetic 2698 | 16 82 145 . 182 352 54 21 24 132 47 199 45 85 3 14 146 161 234 5 91 . 112 142 261 145 . Thermal 552 | . 18 46 . 83 10 2 . . 9 . . . 31 16 24 114 56 . . . . . 46 41 44 12 Explosive . | . . . . . . . . . . . . . . . . . . . . . . . . . . . Electromagnetic 74 | . . . . 8 1 . . . . . . . . . . . . . . . . . . 55 10 . Entropic 15 | . . . . . . . . . . . . . . . . . . . . . . 3 12 . . . Robot Hit Streak 55 | 3 6 15 . 17 55 9 4 4 5 33 34 26 27 14 17 22 24 25 21 29 . 28 23 27 36 4 Robot Miss Streak 7 | 3 4 4 . 7 3 6 5 6 4 1 5 1 3 . 2 4 2 4 . 3 . 2 3 4 2 2 Penetration Max 3 | . . . . . 1 . 2 . 1 1 1 1 1 . . 1 1 2 . . . . 1 3 1 . Secondary Targets 72 | . 3 3 . 3 9 3 1 . 1 . 7 3 5 . . 1 . 11 . 3 . 6 4 4 5 . Max Gunslinging Chain 3 | . 1 1 . 1 1 1 1 . 1 . 2 1 1 . . 1 . 3 . 2 . 1 1 1 1 . Shots Hit Robots 2227 | 7 52 85 . 174 256 29 18 8 67 59 134 35 71 13 19 169 170 172 5 64 . 96 133 228 147 16 Core Hits 948 | 4 28 36 . 95 127 21 15 8 34 4 59 16 29 2 10 71 27 61 1 16 . 30 50 123 79 2 Critical Kills 63 | . 1 . . 1 2 6 2 . 3 . 4 1 2 . . 6 1 1 1 . . . 5 22 4 1 Critical Parts Destroyed 68 | . . . . . 4 . 1 . 4 4 6 . 2 . 1 9 3 3 . 1 . . 5 19 6 . Critical Strikes 164 | . 1 2 . 1 7 6 3 . 8 10 10 1 5 . 2 25 9 4 1 1 . . 12 41 13 2 Burn 11 | . . . . . . . . . . . . . 1 . 1 6 1 . . . . . . . 2 . Meltdown 3 | . . . . 1 . . . . . . . . . . . 1 . . . . . . . . . 1 Destroy 136 | . 1 2 . . 7 6 3 . 7 6 9 1 4 . 1 17 8 4 1 1 . . 10 37 11 . Blast 1 | . . . . . . . . . . . . . . . . 1 . . . . . . . . . . Smash 10 | . . . . . . . . . 1 4 1 . . . . . . . . . . . . 4 . . Sever 1 | . . . . . . . . . . . . . . . . . . . . . . . . . . 1 Sunder 2 | . . . . . . . . . . . . . . . . . . . . . . . 2 . . . Melee Attacks 167 | . . . . 6 75 . 8 . 5 13 5 . . . . . . 1 2 8 . 1 16 14 . 13 Impact 132 | . . . . . 67 . . . 5 13 5 . . . . . . 1 2 8 . 1 16 14 . . Slashing 35 | . . . . 6 8 . 8 . . . . . . . . . . . . . . . . . . 13 Piercing . | . . . . . . . . . . . . . . . . . . . . . . . . . . . Sneak Attacks 20 | . . . . . 6 . . . 1 5 1 . . . . . . . . . . . 1 6 . . Combat Hostiles . | . . . . . . . . . . . . . . . . . . . . . . . . . . . Follow-up Attacks . | . . . . . . . . . . . . . . . . . . . . . . . . . . . Damage Inflicted 69871 | 63 790 1562 . 4958 6794 834 1441 448 2568 2375 4699 1015 1721 159 502 5222 5051 4691 125 1500 . 2764 4678 7718 7254 939 Guns 49581 | 63 638 1319 . 2343 6259 834 660 244 2009 1243 4185 1015 1670 75 277 2884 3820 4691 125 1361 . 2479 3634 4800 2953 . Cannons 11738 | . 149 243 . 2212 . . . . . . . . 51 . 225 2338 1231 . . . . 285 906 1494 2122 482 Explosions 4336 | . . . . 403 . . . 204 381 . 398 . . . . . . . . . . . . 777 2173 . Melee 4058 | . . . . . 535 . 781 . 178 1132 116 . . . . . . . . 139 . . 138 603 . 436 Ramming 38 | . 3 . . . . . . . . . . . . . . . . . . . . . . 8 6 21 Kinetic 48041 | 63 638 1119 . 2836 6008 834 660 244 1975 1243 4185 1015 1312 . 173 3008 4019 4691 125 1361 . 2479 2667 4718 2668 . Thermal 14141 | . 149 443 . 1719 251 . . . 415 . 398 . 409 159 329 2214 1032 . . . . . 967 1377 3797 482 Explosive . | . . . . . . . . . . . . . . . . . . . . . . . . . . . Electromagnetic 2402 | . . . . 403 . . . 204 . . . . . . . . . . . . . . . 1012 783 . Impact 2399 | . . . . . 93 . . . 178 1132 116 . . . . . . . . 139 . . 138 603 . . Slashing 1659 | . . . . . 442 . 781 . . . . . . . . . . . . . . . . . . 436 Piercing . | . . . . . . . . . . . . . . . . . . . . . . . . . . . Entropic 1191 | . . . . . . . . . . . . . . . . . . . . . . 285 906 . . . Highest Corruption 13 | . 3 3 . 1 . . . 2 . . 6 6 4 4 4 . . 1 1 1 1 1 . 8 13 4 Average Corruption 2 | . 2 3 . 1 . . . 2 . . 5 3 2 4 4 . . 1 1 1 1 1 . 2 7 3 Corruption Purged 20 | . . . . 1 . . . . . . . 5 . . . . . . . . . . . 14 . . Corruption Blocked . | . . . . . . . . . . . . . . . . . . . . . . . . . . . Effects 193 | . 11 36 . 5 . . . . . . 17 15 8 6 18 . . 7 10 12 1 11 . 17 15 4 Message Errors 42 | . 4 10 . 1 . . . . . . 3 3 2 1 2 . . 1 3 3 . 1 . 3 3 2 Matter Fused 57 | . 3 13 . 2 . . . . . . 5 5 1 3 8 . . 1 3 3 . 6 . 3 1 . Heat Flow Errors 23 | . . 2 . . . . . . . . 1 3 3 2 3 . . 1 2 2 . 1 . . 2 1 Energy Discharges 23 | . 2 5 . . . . . . . . 1 2 . . 2 . . 1 1 3 . 1 . 5 . . Parts Rejected 3 | . . . . . . . . . . . . . 1 . . . . . . . . . . . 1 1 Parts Fused 4 | . . . . . . . . . . . 2 1 . . . . . . . . . . . 1 . . Data Loss (minor) 19 | . 2 4 . 1 . . . . . . 1 . . . 3 . . . . 1 . 1 . 3 3 . Data Loss (major) 6 | . . 1 . . . . . . . . 1 . . . . . . . 1 . 1 1 . 1 . . Misfires 6 | . . . . . . . . . . . . 1 1 . . . . 3 . . . . . . 1 . Misdirections 1 | . . . . . . . . . . . . . . . . . . . . . . . . . 1 . Weapon Failures 9 | . . 1 . 1 . . . . . . 3 . . . . . . . . . . . . 1 3 . Overload Shots 11 | . . . . . . 2 . . 7 . . . . . . . . . . . . . . . 2 . Effects 2 | . . . . . . 1 . . 1 . . . . . . . . . . . . . . . . . Heat Surge 1 | . . . . . . 1 . . . . . . . . . . . . . . . . . . . . Short Circuit 1 | . . . . . . . . . 1 . . . . . . . . . . . . . . . . . Overflow Damage 2528 | . . . . 91 125 . 195 . 336 213 250 . . 11 . 50 . . . . . . 130 423 598 106 Projectiles 685 | . . . . 89 . . . . . . . . . 11 . 50 . . . . . . 50 59 332 94 Explosions 611 | . . . . 2 . . . . 180 . 134 . . . . . . . . . . . . 29 266 . Melee 1232 | . . . . . 125 . 195 . 156 213 116 . . . . . . . . . . . 80 335 . 12 Knockbacks 23 | . . . . 18 . . . . 1 2 . . . . . 1 . . . . . . . 1 . . Impact 4 | . . . . . . . . . 1 2 . . . . . . . . . . . . . 1 . . Kinetic 18 | . . . . 17 . . . . . . . . . . . 1 . . . . . . . . . . Secondary 1 | . . . . 1 . . . . . . . . . . . . . . . . . . . . . . Self-Inflicted Damage 632 | . . . . . . . . 95 415 . . . . . . . . . . . . . . 4 97 21 Shots 8 | . . . . . . . . 1 5 . . . . . . . . . . . . . . . 2 . Rammed 2 | . . . . . . . . . . . . . . . . . . . . . . . . 1 1 . Targets Rammed 3 | . 1 . . . . . . . . . . . . . . . . . . . . . . 1 1 . Kicked . | . . . . . . . . . . . . . . . . . . . . . . . . . . . Crushed 1 | . 1 . . . . . . . . . . . . . . . . . . . . . . . . . Highest Temperature 677 | . 278 190 . 309 260 356 99 66 378 28 226 341 333 241 471 677 426 322 205 248 . 443 486 446 522 87 Average Temperature 105 | . 124 25 . 76 65 137 60 36 69 21 33 137 125 89 142 164 167 129 119 110 . 201 149 48 117 55 Received Heat Transfer 5964 | . 108 153 . 444 296 . 45 39 18 . 159 297 54 . 407 707 . 592 . 425 . 794 540 238 648 . Effects 23 | . . . . . . . . . 2 . . . 2 . 4 5 3 1 . . . . 5 . 1 . Shutdowns 4 | . . . . . . . . . 1 . . . . . 1 1 1 . . . . . . . . . Energy Bleed 4 | . . . . . . . . . . . . . . . . 1 1 1 . . . . 1 . . . Interference 10 | . . . . . . . . . 1 . . . 2 . 3 . . . . . . . 3 . 1 . Matter Decay 2 | . . . . . . . . . . . . . . . . 1 . . . . . . 1 . . . Short Circuit 1 | . . . . . . . . . . . . . . . . . 1 . . . . . . . . . Damage (major) 2 | . . . . . . . . . . . . . . . . 2 . . . . . . . . . . Siege Activations 37 | . . . . . . . . . 3 . 3 2 3 . 2 5 1 4 . 5 . 6 1 . 2 . Total Turns 651 | . . . . . . . . . 63 . 90 38 29 . 16 72 9 56 . 77 . 129 15 . 57 . Longest Duration 56 | . . . . . . . . . 56 . 54 29 20 . 8 40 9 19 . 29 . 43 15 . 54 . Martial Activations . | . . . . . . . . . . . . . . . . . . . . . . . . . . . Shielding Activations . | . . . . . . . . . . . . . . . . . . . . . . . . . . . Robots Disrupted 7 | . . . . . . . . . . . . . . . . . . . . . . . . 7 . . Combat Hostiles 5 | . . . . . . . . . . . . . . . . . . . . . . . . 5 . . Robots Corrupted 13 | . . . . 2 1 . . . 1 3 . . . . . . . . . . . . . 5 1 . Combat Hostiles 7 | . . . . 2 . . . . . 1 . . . . . . . . . . . . . 3 1 . Parts Fried 22 | . . . . . 1 . . . . 1 2 . . . . . . . . . . . 2 12 4 . Impact Corruptions 25 | . . . . . 2 . . . 2 5 4 . . . . . . . . . . . 3 9 . . Robots Melted 3 | . . . . 1 . . . . . . . . . . . 1 . . . . . . . . . 1 Combat Hostiles 3 | . . . . 1 . . . . . . . . . . . 1 . . . . . . . . . 1 Parts Melted 27 | . . . . 1 . . . . . . 1 . 4 . . 12 . . . . . . 3 1 4 1 Heat Transferred 17129 | . 296 583 . 1517 502 . . . 187 . 300 . 703 361 620 4053 1887 . . . . . 1474 1250 3063 333 Parts Sabotaged 3 | . . . . . . . . . . . . . . . . . . . . . . . . . 3 . Parts Stolen . | . . . . . . . . . . . . . . . . . . . . . . . . . . . Parts Stripped . | . . . . . . . . . . . . . . . . . . . . . . . . . . . Power Chain Reactions 4 | . . . . . . . . . . . . . . . . . . . . . . . . 3 1 . Alert | -11 -10 -10 -8 -6 -6 -6 -6 -6 -5 -5 -5 -5 -5 -5 -4 -4 -4 -4 -4 -4 -4 -3 -3 -3 -2 -1 ------- Run | Yrd Mat Sub Scr Fac Ext Cet Arc Hub Fac Was Fac Upp Upp Zhi Pro Fac Was Fac Upp Upp War Pro Res Tes Res Acc Maximum Alert Level 5 | . 1 . . 1 4 3 3 1 2 . 5 . . . . 2 . 2 . . . . 2 2 3 2 Low Security (%) 41 | 100 81 . . 59 53 . . 3 19 100 3 . . . . 18 100 69 . . . . 23 41 . . Level 1 24 | . 18 . . 40 6 . 8 96 43 . 32 . . . . 55 . 9 . . . . 11 51 57 1 Level 2 22 | . . . . . 6 76 55 . 37 . 25 . . . . 25 . 20 . . . . 65 7 9 98 Level 3 9 | . . . . . 33 23 35 . . . 8 . . . . . . . . . . . . . 33 . Level 4 . | . . . . . . . . . . . 7 . . . . . . . . . . . . . . . Level 5 1 | . . . . . . . . . . . 21 . . . . . . . . . . . . . . . High Security . | . . . . . . . . . . . . . . . . . . . . . . . . . . . Max Security . | . . . . . . . . . . . . . . . . . . . . . . . . . . . Peak Influence 1719 | 5 261 . . 310 1151 733 874 375 540 77 1719 . . . . 526 180 450 . . . . 672 645 1033 583 Initial 644 | . . . . . 115 644 268 183 183 77 . . . . . 300 178 1 . . . . 150 328 361 583 Average 333 | 1 115 . . 140 372 655 634 228 349 15 777 . . . . 319 60 158 . . . . 420 252 537 513 Influence Increases 15853 | 10 557 180 . 814 2111 321 703 262 873 36 2423 150 375 15 60 1076 34 1204 20 160 . 300 1411 1301 1339 118 Destroy 0b10 Robot/C 7960 | . 340 140 . 560 1040 160 300 20 360 . 940 140 280 . 40 440 . 580 20 120 . 240 640 840 700 60 Destroy 0b10 Robot/NC 680 | 10 45 . . 60 90 10 40 5 25 . 70 . . 15 10 35 . 55 . 5 . 10 40 130 25 . Destroy Leader 1372 | . 80 10 . 96 126 . . 10 106 . 180 10 50 . 10 126 . 126 . 20 . 50 114 126 122 10 Allied During Kill 2357 | . . . . . 640 114 332 . . . 839 . . . . 27 . 218 . . . . 187 . . . Successful Hack 430 | . 30 . . 29 32 . . 24 32 . 6 . . . . 16 . 66 . . . . 63 54 78 . Select Force Hacks 90 | . 60 . . . . . . . 30 . . . . . . . . . . . . . . . . . Disable Machine 825 | . . . . . 75 15 15 90 150 . 180 . . . . 45 . 105 . . . . 60 75 . 15 Anti-Garrison Action 150 | . . . . . . . . . . . . . . . . . . . . . . . . . 150 . Destroy Structure 1194 | . 2 . . 39 78 22 16 98 170 36 178 . . . . 72 34 24 . . . . 142 76 189 18 Advance Influence 450 | . . . . . . . . . . . . . . . . 300 . . . . . . 150 . . . Partial Spotted 15 | . . . . . . . . . . . . . . . . . . . . . . . . . 15 . Lose Combat Pursuer 330 | . . 30 . 30 30 . . 15 . . 30 . 45 . . 15 . 30 . 15 . . 15 . 60 15 Influence Decreases 15452 | 10 397 310 30 578 1196 801 849 412 1026 258 744 1028 499 692 60 566 542 785 441 160 . 300 826 1243 1010 689 Entered New Map 4687 | . . 77 30 . 121 507 403 342 192 145 . 622 153 677 . . 332 1 157 . . . . 257 282 389 Time Decay 7879 | 10 397 203 . 538 693 254 356 60 514 113 464 386 286 15 60 326 210 460 284 160 . 260 646 646 368 170 Search Patrol Dispatched 100 | . . . . . . . . . . . . . . . . 100 . . . . . . . . . . Lost Part 840 | . . 30 . 40 20 . 30 10 20 . 30 20 60 . . 60 . . . . . 40 100 40 210 130 Lost Ally 932 | . . . . . 212 40 60 . . . 250 . . . . 80 . 210 . . . . 80 . . . Purge Threat 1014 | . . . . . 150 . . . 300 . . . . . . . . 114 . . . . . 300 150 . Squads Dispatched 84 | . 3 . . 8 8 . . 2 10 . 9 . . . . 7 . 8 . . . . 8 13 7 1 Investigation 27 | . 3 . . 2 3 . . . 8 . . . . . . 2 . 3 . . . . 5 . 1 . Extermination 20 | . . . . 3 . . . . 2 . 1 . . . . 1 . 3 . . . . . 7 2 1 Reinforcement 21 | . . . . 3 2 . . 1 . . 3 . . . . 2 . 1 . . . . 3 5 1 . Assault 12 | . . . . . 3 . . . . . 4 . . . . . . 1 . . . . . 1 3 . Garrison 4 | . . . . . . . . 1 . . 1 . . . . 2 . . . . . . . . . . Intercept . | . . . . . . . . . . . . . . . . . . . . . . . . . . . Searches Triggered 1 | . . . . . . . . . . . . . . . . 1 . . . . . . . . . . Construction Impeded 8 | . . . . 2 2 . . . . . . . . . . 1 . 1 . . . . . 1 1 . Haulers Reinforced 5 | . . . . 1 . . . . . . . . . . . 1 . . . . . . 2 1 . . Active Scanning Responses . | . . . . . . . . . . . . . . . . . . . . . . . . . . . Cargo Convoy Interrupts . | . . . . . . . . . . . . . . . . . . . . . . . . . . . Stealth | -11 -10 -10 -8 -6 -6 -6 -6 -6 -5 -5 -5 -5 -5 -5 -4 -4 -4 -4 -4 -4 -4 -3 -3 -3 -2 -1 --------- Run | Yrd Mat Sub Scr Fac Ext Cet Arc Hub Fac Was Fac Upp Upp Zhi Pro Fac Was Fac Upp Upp War Pro Res Tes Res Acc Distress Signals 24 | . 1 . . 2 . 2 . . . . 3 . . . . 1 . 2 . . . . 10 1 2 . Communications Jammed . | . . . . . . . . . . . . . . . . . . . . . . . . . . . Distress Signals . | . . . . . . . . . . . . . . . . . . . . . . . . . . . Times Spotted 513 | . 23 26 . 31 64 10 10 13 19 1 46 7 23 . 4 25 6 34 1 8 . 12 36 50 54 10 Peak Tracking Total 11 | . 5 4 . 4 5 5 10 11 5 1 7 6 5 . 1 6 3 6 1 5 . 5 6 6 11 5 Tactical Retreats 16 | . . 1 . 2 1 . . 1 . . 2 . 2 . . 1 . 1 . 1 . . 1 . 2 1 Traps | -11 -10 -10 -8 -6 -6 -6 -6 -6 -5 -5 -5 -5 -5 -5 -4 -4 -4 -4 -4 -4 -4 -3 -3 -3 -2 -1 ------- Run | Yrd Mat Sub Scr Fac Ext Cet Arc Hub Fac Was Fac Upp Upp Zhi Pro Fac Was Fac Upp Upp War Pro Res Tes Res Acc Traps Triggered 26 | . 1 1 . 4 2 . . 2 5 . 2 . . . . 1 . 3 . . . . . . 2 3 Indirectly 1 | . . . . . . . . 1 . . . . . . . . . . . . . . . . . . Trap Hack Attempts . | . . . . . . . . . . . . . . . . . . . . . . . . . . . Triggered . | . . . . . . . . . . . . . . . . . . . . . . . . . . . Disarmed . | . . . . . . . . . . . . . . . . . . . . . . . . . . . Reprogrammed . | . . . . . . . . . . . . . . . . . . . . . . . . . . . Reused . | . . . . . . . . . . . . . . . . . . . . . . . . . . . Traps Extracted . | . . . . . . . . . . . . . . . . . . . . . . . . . . . Installed . | . . . . . . . . . . . . . . . . . . . . . . . . . . . Triggered . | . . . . . . . . . . . . . . . . . . . . . . . . . . . Machines | -11 -10 -10 -8 -6 -6 -6 -6 -6 -5 -5 -5 -5 -5 -5 -4 -4 -4 -4 -4 -4 -4 -3 -3 -3 -2 -1 ---------- Run | Yrd Mat Sub Scr Fac Ext Cet Arc Hub Fac Was Fac Upp Upp Zhi Pro Fac Was Fac Upp Upp War Pro Res Tes Res Acc Machines Disabled 62 | . . 1 . . 6 1 1 6 10 . 12 . . . . 3 . 7 . 2 1 . 4 6 1 1 Max in Single Turn 6 | . . 1 . . 1 1 1 3 6 . 5 . . . . 1 . 2 . 1 1 . 1 1 1 1 Garrison Access 8 | . . . . 1 . . . . 1 . 2 . . . . 1 . 2 . . . . . . 1 . Network Hub 1 | . . . . . . . . 1 . . . . . . . . . . . . . . . . . . Machines Repaired . | . . . . . . . . . . . . . . . . . . . . . . . . . . . Machines Dismantled 1 | . . . . . . . . . . . . . . . . . . . . . 1 . . . . . Machines Sabotaged . | . . . . . . . . . . . . . . . . . . . . . . . . . . . Overloaded Fab Kills . | . . . . . . . . . . . . . . . . . . . . . . . . . . . Hacking | -11 -10 -10 -8 -6 -6 -6 -6 -6 -5 -5 -5 -5 -5 -5 -4 -4 -4 -4 -4 -4 -4 -3 -3 -3 -2 -1 --------- Run | Yrd Mat Sub Scr Fac Ext Cet Arc Hub Fac Was Fac Upp Upp Zhi Pro Fac Was Fac Upp Upp War Pro Res Tes Res Acc Machines Accessed 119 | . 8 1 2 9 11 2 . 2 14 . 6 1 . 6 . 6 . 18 . 2 2 . 11 11 4 3 Terminals 61 | . 6 . . 4 10 2 . 1 6 . 3 . . . . 2 . 10 . 1 . . 3 7 3 3 Fabricators 5 | . . . . . . . . . 1 . 1 . . . . 1 . 1 . . . . . 1 . . Repair Stations 8 | . . . . . . . . . 2 . 1 . . . . 1 . 2 . . . . . 1 1 . Recycling Units 17 | . 2 . . 2 1 . . . 4 . . . . . . 1 . 2 . . . . 5 . . . Scanalyzers 8 | . . . . 2 . . . . . . . . . . . . . 1 . . . . 3 2 . . Garrison Access 7 | . . . . 1 . . . 1 1 . 1 . . . . 1 . 2 . . . . . . . . Total Hacks 359 | . 28 2 9 30 35 2 . 5 44 . 20 1 . 19 . 19 . 49 . 2 2 . 34 29 24 5 Successful 213 | . 17 2 9 18 16 1 . 3 21 . 9 1 . 19 . 10 . 34 . 2 2 . 22 9 18 . Failed 142 | . 10 . . 11 18 1 . 2 23 . 11 . . . . 9 . 15 . . . . 12 19 6 5 Catastrophic 18 | . . . . 1 1 1 . 1 3 . 1 . . . . . . 2 . . . . 2 2 1 3 Database Lockouts 4 | . 1 . . 1 1 . . . . . . . . . . . . . . . . . . 1 . . Manual 178 | . 25 . . 15 18 1 . 3 24 . 12 . . . . 10 . 30 . . . . 15 9 14 2 Terminals 221 | . 25 . . 16 34 2 . 4 20 . 9 . . . . 10 . 38 . 1 . . 14 20 23 5 Fabricators 21 | . . . . . . . . . 6 . 6 . . . . 6 . 1 . . . . . 2 . . Repair Stations 18 | . . . . . . . . . 7 . 3 . . . . 1 . 4 . . . . . 2 1 . Recycling Units 27 | . 3 . . 3 1 . . . 10 . . . . . . 1 . 2 . . . . 7 . . . Scanalyzers 29 | . . . . 9 . . . . . . . . . . . . . 2 . . . . 13 5 . . Garrison Access 9 | . . . . 2 . . . 1 1 . 2 . . . . 1 . 2 . . . . . . . . Terminal Hacks 98 | . 4 2 9 2 10 1 . 1 6 . 1 1 . 19 . 1 . 14 . 2 2 . 5 5 13 . Record 20 | . . 1 9 . . 1 . . . . . . . 7 . . . . . 2 . . . . . . Part Schematic 5 | . . . . . . . . . 1 . . . . 4 . . . . . . . . . . . . Robot Schematic 1 | . . . . 1 . . . . . . . . . . . . . . . . . . . . . . Robot Analysis 16 | . 2 . . . 3 . . . . . . . . 4 . . . 4 . . . . . . 3 . Prototype ID Bank 6 | . 1 . . . . . . . . . . . . 4 . . . . . . . . 1 . . . Open Door 7 | . . . . . 4 . . . . . . 1 . . . . . . . . 2 . . . . . Level Access Points 1 | . . . . . . . . . . . . . . . . . . 1 . . . . . . . . Branch Access Points 5 | . . . . . . . . . 1 . 1 . . . . . . 1 . . . . 1 . 1 . Machine Index 1 | . . . . . . . . . . . . . . . . . . 1 . . . . . . . . Terminal Index 4 | . . . . . . . . . 1 . . . . . . 1 . 1 . . . . . . 1 . Fabricator Index 1 | . . . . . . . . . . . . . . . . . . . . . . . . . 1 . Recycling Unit Index 5 | . 1 . . . . . . 1 . . . . . . . . . 1 . . . . 1 . 1 . Scanalyzer Index 1 | . . . . . . . . . . . . . . . . . . . . . . . 1 . . . Garrison Index 2 | . . . . . . . . . . . . . . . . . . 1 . . . . . . 1 . Alert Level 4 | . . . . 1 . . . . . . . . . . . . . 1 . . . . . . 2 . Unreport Threat 7 | . . . . . 1 . . . 2 . . . . . . . . 1 . . . . . 2 1 . Locate Traps 5 | . . . . . 2 . . . . . . . . . . . . 1 . . . . 1 . 1 . Zone Layout 6 | . . . . . . . . . 1 . . . . . . . . 1 . . . . . 3 1 . Proto ID Catalog 1 | . . 1 . . . . . . . . . . . . . . . . . . . . . . . . Fabricator Hacks 5 | . . . . . . . . . 3 . . . . . . 1 . . . . . . . 1 . . Network Status 3 | . . . . . . . . . 1 . . . . . . 1 . . . . . . . 1 . . Load Schematic 1 | . . . . . . . . . 1 . . . . . . . . . . . . . . . . . Build 1 | . . . . . . . . . 1 . . . . . . . . . . . . . . . . . Repair Station Hacks 8 | . . . . . . . . . 3 . 2 . . . . . . 2 . . . . . 1 . . Scan Component 5 | . . . . . . . . . 2 . 1 . . . . . . 1 . . . . . 1 . . Repair 3 | . . . . . . . . . 1 . 1 . . . . . . 1 . . . . . . . . Recycling Unit Hacks . | . . . . . . . . . . . . . . . . . . . . . . . . . . . Scanalyzer 17 | . . . . 5 . . . . . . . . . . . . . 1 . . . . 9 2 . . Insert Component 5 | . . . . 3 . . . . . . . . . . . . . . . . . . 2 . . . Analyze 3 | . . . . 1 . . . . . . . . . . . . . . . . . . 2 . . . Retrieve Study 9 | . . . . 1 . . . . . . . . . . . . . 1 . . . . 5 2 . . Garrison Access Hacks 6 | . . . . 1 . . . . 1 . 1 . . . . 1 . 2 . . . . . . . . Seal Access 6 | . . . . 1 . . . . 1 . 1 . . . . 1 . 2 . . . . . . . . Unauthorized Hacks 79 | . 13 . . 10 6 . . 2 8 . 5 . . . . 7 . 15 . . . . 8 . 5 . Terminals 51 | . 11 . . 8 5 . . 2 2 . 3 . . . . 2 . 11 . . . . 3 . 4 . Track 4 | . . . . 2 1 . . . . . . . . . . . . 1 . . . . . . . . Assimilate 1 | . . . . . . . . . . . . . . . . . . 1 . . . . . . . . Botnet 22 | . 4 . . 2 3 . . 1 1 . 2 . . . . 2 . 3 . . . . 2 . 2 . Operators 4 | . 1 . . 1 1 . . . . . . . . . . . . 1 . . . . . . . . Skim 20 | . 6 . . 3 . . . 1 1 . 1 . . . . . . 5 . . . . 1 . 2 . Fabricators 6 | . . . . . . . . . 1 . 1 . . . . 3 . 1 . . . . . . . . Report 4 | . . . . . . . . . 1 . 1 . . . . 1 . 1 . . . . . . . . Liberate 1 | . . . . . . . . . . . . . . . . 1 . . . . . . . . . . Haulers 1 | . . . . . . . . . . . . . . . . 1 . . . . . . . . . . Repair Stations 5 | . . . . . . . . . 1 . 1 . . . . 1 . 1 . . . . . . 1 . Mechanics 1 | . . . . . . . . . . . 1 . . . . . . . . . . . . . . . Patch 4 | . . . . . . . . . 1 . . . . . . 1 . 1 . . . . . . 1 . Recycling Units 17 | . 2 . . 2 1 . . . 4 . . . . . . 1 . 2 . . . . 5 . . . Tunnel 3 | . 2 . . . . . . . 1 . . . . . . . . . . . . . . . . . Fedlink 12 | . . . . 2 1 . . . 3 . . . . . . . . 2 . . . . 4 . . . Scrapoids 2 | . . . . . . . . . . . . . . . . 1 . . . . . . 1 . . . Scanalyzers . | . . . . . . . . . . . . . . . . . . . . . . . . . . . Garrison Access . | . . . . . . . . . . . . . . . . . . . . . . . . . . . Data Cores Recovered 5 | . . . . . 2 . . . . . . . . . . . . 1 . . . . . 1 1 . Used 2 | . . . . . . . . . . . . . . . . . . 1 . . . . . 1 . . Hacking Detections 65 | . 6 . . 7 7 2 . 2 8 . 4 . . . . 3 . 9 . . . . 6 6 3 2 Full Trace Events 5 | . 1 . . . 1 . . . 3 . . . . . . . . . . . . . . . . . Feedback Events 1 | . 1 . . . . . . . . . . . . . . . . . . . . . . . . . Corruption 1 | . 1 . . . . . . . . . . . . . . . . . . . . . . . . . Feedback Blocked . | . . . . . . . . . . . . . . . . . . . . . . . . . . . Robot Schematics Acquired 3 | . . . . 1 . . . . . . . . . . . . . . . . . . . 2 . . Robots Built 1 | . . . . . . . . . 1 . . . . . . . . . . . . . . . . . Authchips . | . . . . . . . . . . . . . . . . . . . . . . . . . . . Time 116 | . . . . . . . . . 116 . . . . . . . . . . . . . . . . . Total Robot Build Rating 3 | . . . . . . . . . 3 . . . . . . . . . . . . . . . . . Part Schematics Acquired 11 | . . . . 1 . . . . 1 . . . . 4 . . . . . . . . 2 3 . . Parts Built . | . . . . . . . . . . . . . . . . . . . . . . . . . . . Authchips . | . . . . . . . . . . . . . . . . . . . . . . . . . . . Time . | . . . . . . . . . . . . . . . . . . . . . . . . . . . Total Part Build Rating . | . . . . . . . . . . . . . . . . . . . . . . . . . . . Part Studies Acquired 9 | . . . . 1 . . . . . . . . . . . . . 1 . . . . 5 2 . . Parts Repaired 3 | . . . . . . . . . 1 . 1 . . . . . . 1 . . . . . . . . Time 256 | . . . . . . . . . 108 . 99 . . . . . . 49 . . . . . . . . Parts Recycled . | . . . . . . . . . . . . . . . . . . . . . . . . . . . Recycled Matter . | . . . . . . . . . . . . . . . . . . . . . . . . . . . Retrieved Matter . | . . . . . . . . . . . . . . . . . . . . . . . . . . . Retrieved Components . | . . . . . . . . . . . . . . . . . . . . . . . . . . . Parts Scanalyzed 4 | . . . . 2 . . . . . . . . . . . . . . . . . . 2 . . . Part Schematics Acquired 3 | . . . . 1 . . . . . . . . . . . . . . . . . . 2 . . . Parts Damaged . | . . . . . . . . . . . . . . . . . . . . . . . . . . . Bothacking | -11 -10 -10 -8 -6 -6 -6 -6 -6 -5 -5 -5 -5 -5 -5 -4 -4 -4 -4 -4 -4 -4 -3 -3 -3 -2 -1 ------------ Run | Yrd Mat Sub Scr Fac Ext Cet Arc Hub Fac Was Fac Upp Upp Zhi Pro Fac Was Fac Upp Upp War Pro Res Tes Res Acc Used RIF Installer . | . . . . . . . . . . . . . . . . . . . . . . . . . . . Robots Hacked . | . . . . . . . . . . . . . . . . . . . . . . . . . . . Non-combat . | . . . . . . . . . . . . . . . . . . . . . . . . . . . Combat . | . . . . . . . . . . . . . . . . . . . . . . . . . . . Robot Hacks Applied . | . . . . . . . . . . . . . . . . . . . . . . . . . . . Relay Couplers Released 5 | . . . . . . . . . . . 2 . . . . . . . . . . . . . 3 . Machine Destruction 5 | . . . . . . . . . . . 2 . . . . . . . . . . . . . 3 . Fabnet Peak Effective % . | . . . . . . . . . . . . . . . . . . . . . . . . . . . Robots Rewired 14 | . . . . . 13 . . . . . . . . . . . . . . . . . . 1 . . Allies Hacked 4 | . . . . . . . . . . . 2 . . . . . . 2 . . . . . . . . Hacks Repelled 1 | . . . . . . . . . . . 1 . . . . . . . . . . . . . . . Allies | -11 -10 -10 -8 -6 -6 -6 -6 -6 -5 -5 -5 -5 -5 -5 -4 -4 -4 -4 -4 -4 -4 -3 -3 -3 -2 -1 -------- Run | Yrd Mat Sub Scr Fac Ext Cet Arc Hub Fac Was Fac Upp Upp Zhi Pro Fac Was Fac Upp Upp War Pro Res Tes Res Acc Total Allies 77 | . . . . . 22 5 . . 1 20 . . . . . 5 18 . . . . . 5 1 . . Largest Group 21 | . . . . . 18 8 7 . 1 21 18 . . . . 5 18 15 . . . . 5 . . . Highest-Rated Group 781 | . . . . . 628 704 665 . 23 781 654 . . . . 235 656 531 . . . . 313 . . . Highest-Rated Ally 159 | . . . . . 159 159 159 . 23 50 46 . . . . 47 50 46 . . . . 64 . . . Initial UFD Resources 91 | . . . . 23 37 39 39 39 41 57 57 57 57 57 59 59 56 56 70 70 70 72 72 87 89 91 Total Orders . | . . . . . . . . . . . . . . . . . . . . . . . . . . . Ally Attacks 665 | . . . . . 195 29 48 . . 25 153 . . . . 20 . 127 . . . . 68 . . . Total Damage 15238 | . . . . . 3630 734 1967 . . 641 3913 . . . . 388 . 2208 . . . . 1757 . . . Kills 101 | . . . . . 26 3 14 . . 1 32 . . . . . . 9 . . . . 16 . . . Allies Corrupted 3 | . . . . . . . . . . 2 1 . . . . . . . . . . . . . . . Allies Melted 1 | . . . . . 1 . . . . . . . . . . . . . . . . . . . . . Intel | -11 -10 -10 -8 -6 -6 -6 -6 -6 -5 -5 -5 -5 -5 -5 -4 -4 -4 -4 -4 -4 -4 -3 -3 -3 -2 -1 ------- Run | Yrd Mat Sub Scr Fac Ext Cet Arc Hub Fac Was Fac Upp Upp Zhi Pro Fac Was Fac Upp Upp War Pro Res Tes Res Acc Active Infowar (turns) 13545 | 19 754 . . . . 321 817 138 837 . 77 662 . . . 323 . . 1018 1408 953 1249 2194 2350 284 141 Optics 323 | . . . . . . . . . . . . . . . . 323 . . . . . . . . . . Sensors 7082 | . . . . . . 321 817 138 837 . 77 662 . . . . . . . . . . 2041 1847 201 141 IFF 4473 | . . . . . . . . . . . . . . . . . . . 1017 1406 692 1205 153 . . . Terrain 6456 | 19 754 . . . . . . . . . . . . . . . . . 810 1405 880 1214 150 1081 103 40 ECM 1 | . . . . . . . . . . . . . . . . . . . . . . . 1 . . . Robot Analysis Total 16 | . 2 . . . 3 . . . . . . . . 4 . . . 4 . . . . . . 3 . Derelict Logs Recovered 15 | . . 2 5 . . . . . . . . 2 2 . 2 . . . 1 1 . . . . . . Drone Launches . | . . . . . . . . . . . . . . . . . . . . . . . . . . . Drone Recoveries . | . . . . . . . . . . . . . . . . . . . . . . . . . . . Exploration | -11 -10 -10 -8 -6 -6 -6 -6 -6 -5 -5 -5 -5 -5 -5 -4 -4 -4 -4 -4 -4 -4 -3 -3 -3 -2 -1 ------------- Run | Yrd Mat Sub Scr Fac Ext Cet Arc Hub Fac Was Fac Upp Upp Zhi Pro Fac Was Fac Upp Upp War Pro Res Tes Res Acc Turns Passed 31701 | 65 1369 1791 2118 2006 3514 542 817 138 1415 500 1204 911 630 240 757 735 695 1616 1020 1502 953 1249 2358 2352 847 357 Spaces Moved 17970 | 34 552 1016 1454 853 2352 409 177 128 860 324 848 381 325 190 519 335 431 1086 547 713 501 489 1257 1308 502 379 Core 29 | . . . . . . . . . . . . . . . . . . . . . . . . . 27 2 Treads 5611 | . 527 165 84 288 894 1 . . 169 . 80 298 175 26 254 164 . 106 539 713 501 489 71 . 67 . Legs 66 | 34 25 . . . . . . . . . . . . . . . . . . . . . . . . 7 Wheels 11316 | . . 851 1370 19 1458 408 177 128 691 324 768 83 150 164 265 171 431 980 8 . . . 1172 1308 346 44 Hover 644 | . . . . 546 . . . . . . . . . . . . . . . . . . 14 . . 84 Flight 304 | . . . . . . . . . . . . . . . . . . . . . . . . . 62 242 Fastest Speed 30 | 120 120 125 125 144 87 99 90 90 90 100 90 90 90 90 100 90 80 100 100 180 180 180 89 95 30 37 Average Speed 128 | 120 158 138 143 148 112 100 99 91 111 100 104 146 145 107 132 129 99 115 178 180 180 180 111 123 104 61 Slowest Speed 450 | 120 160 240 330 450 153 160 100 100 160 100 160 160 260 240 240 260 100 270 180 180 180 180 361 200 225 205 Overloaded Moves 100 | . . . . . . . . . . . . . . . . . . . . . . . . . 55 45 Propulsion Burnouts . | . . . . . . . . . . . . . . . . . . . . . . . . . . . Robots Hopped 10 | . . . . . . . . . . . . . . . . . . 1 . . . . . . 7 2 Potential Cave-ins 2 | . . . . . . . . . . . . . . . . . . . . . . . 2 . . . Cave-ins Triggered . | . . . . . . . . . . . . . . . . . . . . . . . . . . . Exploration Rate (%) 56 | 2 87 63 86 25 97 79 100 16 28 93 24 59 58 57 74 12 95 27 74 88 73 66 35 93 17 10 Regions Visited 26 Branch Regions 15 Pre-discovered Areas 12 | . 2 1 . 1 . . . . 1 . . . . 3 1 . . 2 1 . . . . . . . Known Exits Taken 10 | . . . . . . . . 1 . . 1 1 1 1 1 . . 1 . . . 1 1 1 . . Unknown Exits Taken 12 | 1 1 1 1 1 1 1 1 . . . . . . . . . . . 1 1 1 . . . 1 . Scrap Searched 30 | . . 10 4 . . . . . . . . 3 2 . 5 . . . 3 3 . . . . . . Spaces Dug 64 | . . . . 7 1 . . . 9 . 5 . . . 5 . . 1 2 5 . 1 18 5 2 3 Terrain Destroyed 899 | . . 2 . 37 68 21 6 176 101 5 93 20 35 1 13 38 29 6 2 10 . 22 63 63 83 5 Melee 41 | . . . . 6 1 . . . 3 . 4 . . . . . . 1 2 4 . 1 13 3 . 3 Projectile 573 | . . 2 . 31 67 21 6 13 61 5 68 20 35 1 13 38 29 5 . 6 . 21 49 51 29 2 AOE 281 | . . . . . . . . 163 37 . 21 . . . . . . . . . . . . 6 54 . Terrain Rammed 1 | . . . . . . . . . . . . . . . . . . . . . . . . . . 1 Walls Destroyed . | . . . . . . . . . . . . . . . . . . . . . . . . . . . Machines Disabled 1 | . . . . . . . . . . . . . . . . . . . . . . . . . . 1 Actions | -11 -10 -10 -8 -6 -6 -6 -6 -6 -5 -5 -5 -5 -5 -5 -4 -4 -4 -4 -4 -4 -4 -3 -3 -3 -2 -1 --------- Run | Yrd Mat Sub Scr Fac Ext Cet Arc Hub Fac Was Fac Upp Upp Zhi Pro Fac Was Fac Upp Upp War Pro Res Tes Res Acc Total 24398 | 43 945 1252 1495 1399 2903 531 799 140 1245 449 1022 707 414 216 572 540 613 1316 582 864 541 792 2092 1792 670 464 Wait 4256 | 1 316 134 2 358 202 81 601 3 280 89 86 305 32 . 28 89 111 146 19 109 . 269 661 260 55 19 Move 17928 | 33 551 1015 1453 852 2351 408 176 127 860 323 847 380 324 189 518 335 430 1083 546 712 500 488 1256 1308 488 375 Hop 10 | . . . . . . . . . . . . . . . . . . 1 . . . . . . 7 2 Pick Up 169 | . 10 12 12 17 20 3 2 1 9 3 3 1 7 1 3 13 2 7 4 1 4 2 10 19 1 2 Fast Attach 184 | 1 1 2 3 12 8 7 . 2 8 1 4 2 6 4 2 11 5 1 1 . 6 . 34 19 21 23 Attach 88 | . 2 5 2 8 5 2 2 . 4 1 2 2 4 1 3 4 4 . 4 3 . 3 6 7 11 3 Detach 23 | . 1 2 1 2 3 2 . . . . . 1 . 1 . 3 . . . 1 . 1 1 . 4 . Swap 208 | . 10 4 5 16 17 2 2 1 16 4 13 2 1 5 1 9 9 23 3 8 10 2 23 17 5 . Drop 271 | . 3 12 17 26 29 9 1 . 11 3 5 2 2 3 5 21 11 8 2 2 11 2 38 32 9 7 Fire 923 | 8 50 66 . 89 98 17 7 6 48 12 54 11 38 12 12 53 41 40 1 20 . 24 46 91 67 12 Melee 167 | . . . . 6 75 . 8 . 5 13 5 . . . . . . 1 2 8 . 1 16 14 . 13 Ram 1 | . . . . . . . . . . . . . . . . . . . . . . . . . . 1 Kick . | . . . . . . . . . . . . . . . . . . . . . . . . . . . Crush 1 | . 1 . . . . . . . . . . . . . . . . . . . . . . . . . Escape Stasis 43 | . . . . 13 2 . . . . . . . . . . . . . . . . . . 19 2 7 Rewire 95 | . . . . . 91 . . . . . . 1 . . . . . . . . . . . 3 . . Trap . | . . . . . . . . . . . . . . . . . . . . . . . . . . . Miscellaneous 31 | . . . . . 2 . . . 4 . 3 . . . . 2 . 6 . . 10 . 1 3 . . Route ------- -11/Scrapyard -10/Materials (discovered 5 exits: *Mat x3 / [*Min] / *Sub) -10/Subcaves (discovered 2 exits: [*Mat] / *Scr) -8/Scraptown (discovered 2 exits: *Fac x2) -6/Factory (discovered 3 exits: *Fac / *Low / *Ext) -6/Extension (discovered 2 exits: *Fac / *Cet) -6/Cetus (discovered 2 exits: *Fac / [*Arc]) -6/Archives (discovered 3 exits: *Fac / *Hub x2) -6/Hub_04(d) -5/Factory (discovered 3 exits: *Fac / *Upp x2) -5/Waste -5/Factory (discovered 2 exits: *Upp x2) -5/Upper Caves -5/Upper Caves -5/Zhirov -4/Proximity Caves -4/Factory (discovered 3 exits: Res x3) -4/Waste -4/Factory (discovered 6 exits: *Res x4 / *Upp x2) -4/Upper Caves -4/Upper Caves (discovered 2 exits: *Res / *War) -4/Warlord -3/Proximity Caves -3/Research (discovered 3 exits: Arm / *Tes x2) -3/Testing -2/Research (discovered 3 exits: *Acc / Qua x2) -1/Access History --------- Turn | Location | Event 15 | -11/Scrapyard | Discovered new exit (range 3) 66 | -11/Scrapyard | Entered Materials 311 | -10/Materials | Build established: Mutant 530 | -10/Materials | Central database locked down 543 | -10/Materials | Discovered new exit (range 11) 789 | -10/Materials | Discovered new exit (range 13) 1049 | -10/Materials | Discovered new exit (range 9) 1126 | -10/Materials | Discovered new exit (range 7) 1139 | -10/Materials | Learned Storage emergency access door positions 1195 | -10/Materials | Learned 4 Recycling zone layouts 1243 | -10/Materials | Learned Storage emergency access door positions 1283 | -10/Materials | Loaded intel: 25 trap records 1315 | -10/Materials | Identified exit to Materials 1315 | -10/Materials | Learned location of 1 exit from Materials 1358 | -10/Materials | Learned 2 Storage zone layouts 1409 | -10/Materials | Learned Storage security intel 1435 | -10/Materials | Entered Subcaves 1436 | -10/Subcaves | Approached by a straggling Scientist 1457 | -10/Subcaves | Scientist uncovered a shortcut to Scraptown 1512 | -10/Subcaves | Destroyed 7 combat bots 1714 | -10/Subcaves | Visited 4L-MR0's lab 1753 | -10/Subcaves | Found Gun Armor 1754 | -10/Subcaves | Attached Gun Armor, gained temporary slots: Weapon x2 1816 | -10/Subcaves | Core integrity fell below 50% 1853 | -10/Subcaves | A swath of the cavern ceiling suddenly collapsed 1933 | -10/Subcaves | Ambushed by angry Subdweller bent on revenge 2058 | -10/Subcaves | Build established: Gunner 2116 | -10/Subcaves | A Subdweller sparked back to life 2152 | -10/Subcaves | Found Powered Cannon 2161 | -10/Subcaves | Discovered new exit (range 9) 2414 | -10/Subcaves | Core integrity fell below 20% 2548 | -10/Subcaves | Disturbed a concealed Subdweller 2621 | -10/Subcaves | Learned location of Zion (-7) 2810 | -10/Subcaves | A swath of the cavern ceiling suddenly collapsed 2847 | -10/Subcaves | Learned Materials emergency access door positions 2959 | -10/Subcaves | Disturbed a concealed Subdweller 3226 | -10/Subcaves | Entered Scraptown 3226 | -8/Scraptown | System corruption cleaned by C-Scrubber 3324 | -8/Scraptown | Visited UFD Registry 3324 | -8/Scraptown | Registered with UFD as "Plasmarider" 3357 | -8/Scraptown | Visited Derelict Rescue Squad 3404 | -8/Scraptown | Visited Scrapoid Pod Storage 3429 | -8/Scraptown | Visited DA-N13 Charitable Foundation 3442 | -8/Scraptown | Found DCF Scrap (28 items) 3537 | -8/Scraptown | Visited CR-KLE's Repair Center 3547 | -8/Scraptown | CR-KLE repaired 5 parts 3572 | -8/Scraptown | Visited Bundlers 3631 | -8/Scraptown | Visited The Evicted 3684 | -8/Scraptown | Scanned Subdweller tech in exchange for log data 3687 | -8/Scraptown | Learned Research stockpile data 3690 | -8/Scraptown | Learned Factory interactive machine intel 3691 | -8/Scraptown | Learned Research emergency access door positions 3693 | -8/Scraptown | Learned Research security intel 3714 | -8/Scraptown | Discovered new exit (range 11) 4160 | -8/Scraptown | Visited CPS Storage 4280 | -8/Scraptown | Delivered Scrap Shield to a Scientist 4415 | -8/Scraptown | Visited Observation Area 4496 | -8/Scraptown | Visited Supply Room 4521 | -8/Scraptown | Visited A0-MCA Data Center 4665 | -8/Scraptown | Given an A rating by A0-MCA 4805 | -8/Scraptown | Visited Scrap Suit Storage 4818 | -8/Scraptown | Found Scrap Suit 4944 | -8/Scraptown | Visited Infowarlord's Domain 4953 | -8/Scraptown | Found Exp. Signal Interpreter 4982 | -8/Scraptown | Visited Junk Repository 5019 | -8/Scraptown | Visited Research Penetration Think Tank 5143 | -8/Scraptown | Attached Powered Cannon, gained temporary slot: Power 5143 | -8/Scraptown | Found Scrapoid Pod 5245 | -8/Scraptown | Met Optimus 5245 | -8/Scraptown | Accepted into 0bPrime 5338 | -8/Scraptown | Discovered new exit (range 5) 5344 | -8/Scraptown | Entered Factory 5344 | -6/Factory | Evolved 8 slots: Propulsion x1, Utility x5, Weapon x2 5345 | -6/Factory | Identified exit to Lower Caves 5346 | -6/Factory | Loaded intel: 56 interactive machine locations 5445 | -6/Factory | Central database locked down 5569 | -6/Factory | Loaded intel: 8 recycling unit locations 5593 | -6/Factory | Learned location of Protoforge (-2) 5643 | -6/Factory | Build established: Hacker-Executioner 5666 | -6/Factory | Discovered new exit (range 13) 6016 | -6/Factory | Lost 3 parts (1p2w) 6469 | -6/Factory | Build established: Hacker-Tank 6754 | -6/Factory | Discovered new exit (range 15) 6829 | -6/Factory | Build established: Hacker-Gunner 7350 | -6/Factory | Entered Extension 7433 | -6/Extension | Loaded intel: 1 recycling unit location 7827 | -6/Extension | Central database locked down 7950 | -6/Extension | Rescued a captive Derelict 8974 | -6/Extension | Scrapoid Pod released 06E05-D (x5) 9048 | -6/Extension | Build established: Commander-Gunner 9197 | -6/Extension | Spotted B-75 Beast 9209 | -6/Extension | Allies destroyed B-75 Beast 9216 | -6/Extension | Found Scrap Suit 9234 | -6/Extension | Spotted B-75 Beast 9238 | -6/Extension | Allies destroyed B-75 Beast 9314 | -6/Extension | Rescued a captive Derelict 9344 | -6/Extension | Rescued a captive Derelict 9427 | -6/Extension | Rescued a captive Derelict 9591 | -6/Extension | Discovered new exit (range 10) 9592 | -6/Extension | Discovered new exit (range 6) 9705 | -6/Extension | Lost 3 allies 9777 | -6/Extension | Build established: Commander-Scrapper 9800 | -6/Extension | First assault squad dispatched 10013 | -6/Extension | Lost 9 allies 10276 | -6/Extension | Build established: Scavenger-Scrapper 10525 | -6/Extension | Disrupted transfer network 10563 | -6/Extension | Rescued A7 10803 | -6/Extension | Found Scrap Suit 10864 | -6/Extension | Entered Cetus 10864 | -6/Cetus | Accompanied by 4 allies (A7) 10869 | -6/Cetus | Acquired a Cetus Manufacturing Module code from A7 10878 | -6/Cetus | Spotted Cetus Guard 10879 | -6/Cetus | Spotted Cetus Guard 10879 | -6/Cetus | Destroyed Cetus Guard 10881 | -6/Cetus | Destroyed Cetus Guard 10881 | -6/Cetus | Spotted Cetus Guard 10882 | -6/Cetus | Spotted Cetus Guard 10886 | -6/Cetus | Destroyed Cetus Guard 10886 | -6/Cetus | Destroyed Cetus Guard 10973 | -6/Cetus | Started Cetus Manufacturing Module 10998 | -6/Cetus | Manufactured an Enhanced Grunt 11023 | -6/Cetus | Manufactured an Enhanced Grunt 11042 | -6/Cetus | Escorted A7 to Cetus Mainframe 11048 | -6/Cetus | Manufactured an Enhanced Grunt 11073 | -6/Cetus | Manufactured an Enhanced Grunt 11098 | -6/Cetus | Manufactured an Enhanced Grunt 11130 | -6/Cetus | Discovered new exit (range 15) 11282 | -6/Cetus | Spotted Cetus Guard 11282 | -6/Cetus | Spotted Cetus Guard 11285 | -6/Cetus | Destroyed Cetus Guard 11285 | -6/Cetus | Spotted Cetus Guard 11292 | -6/Cetus | Allies destroyed Cetus Guard 11292 | -6/Cetus | Spotted Cetus Guard 11292 | -6/Cetus | Destroyed Cetus Guard 11298 | -6/Cetus | Allies destroyed Cetus Guard 11307 | -6/Cetus | Discovered new exit (range 15) 11312 | -6/Cetus | Met Revision 17 11406 | -6/Cetus | Entered Archives 11406 | -6/Archives | Accompanied by 7 allies (A7) 11411 | -6/Archives | Received a hacking code to weaken MAIN.C 11439 | -6/Archives | Met Zhirov 11445 | -6/Archives | Reinforcements dispatched to Archives 11490 | -6/Archives | Reinforcements dispatched to Archives 11492 | -6/Archives | Zhirov warped through subspace 11492 | -6/Archives | Discovered new exit (range 13) 11510 | -6/Archives | Zhirov detonated Archives 11538 | -6/Archives | Discovered new exit (range 16) 11541 | -6/Archives | Lost 3 parts (1p1n1u) 11541 | -6/Archives | Lost 5 allies 11584 | -6/Archives | Discovered new exit (range 15) 12223 | -6/Archives | Entered Hub_04(d) 12323 | -6/Hub_04(d) | Discovered new exit (range 7) 12333 | -6/Hub_04(d) | Identified exit to Factory 12353 | -6/Hub_04(d) | Network Hub disabled 12353 | -6/Hub_04(d) | Garrison activated, responded to threat 12354 | -6/Hub_04(d) | Spotted Lightning 12354 | -6/Hub_04(d) | Spotted Lightning 12355 | -6/Hub_04(d) | Spotted Lightning 12361 | -6/Hub_04(d) | Entered Factory 12361 | -5/Factory | Evolved 2 slots: Propulsion x1, Utility x1 12397 | -5/Factory | Discovered new exit (range 16) 12419 | -5/Factory | Identified exit to Factory 12788 | -5/Factory | Loaded intel: 8 recycling unit locations 13389 | -5/Factory | Fabricated M-28 Smith (x1) 13593 | -5/Factory | Repaired Centrium Medium Armor Plating 13622 | -5/Factory | Discovered new exit (range 3) 13731 | -5/Factory | Identified exit to Upper Caves 13776 | -5/Factory | Sucked down chute 13776 | -5/Factory | Entered Waste 13777 | -5/Waste | Joined by Warlord forces that had cleared the area 13781 | -5/Waste | 1 allies followed down the chute 13814 | -5/Waste | Found Prototype Device 13814 | -5/Waste | Identified Exp. Weapon Cycler 14046 | -5/Waste | A Compactor rumbled back to life 14049 | -5/Waste | Spotted C-40 Crusher 14178 | -5/Waste | Discovered new exit (range 15) 14276 | -5/Waste | Entered Factory 14276 | -5/Factory | Accompanied by 18 allies 14664 | -5/Factory | Repaired Adv. KE Penetrator 15060 | -5/Factory | P-70 Sage assimilated allied PW-U05(g) 15074 | -5/Factory | Garrison activated, responded to threat 15176 | -5/Factory | First assault squad dispatched 15229 | -5/Factory | Lost 3 parts (1p1u1w) 15231 | -5/Factory | Lost 3 allies 15333 | -5/Factory | Build established: Scavenger-Tank 15480 | -5/Factory | Entered Upper Caves 15482 | -5/Upper Caves | UFD Scientist delivered a prototype 15484 | -5/Upper Caves | Found Prototype Protection 15484 | -5/Upper Caves | Identified Enh. Scrap Shield 15489 | -5/Upper Caves | Lost 3 allies 15608 | -5/Upper Caves | Attracted the attention of an 0b10 checkpoint 15732 | -5/Upper Caves | Learned Factory emergency access door positions 16176 | -5/Upper Caves | Build established: Hacker-Skirmisher 16301 | -5/Upper Caves | Learned location of 2 exits from Factory 16372 | -5/Upper Caves | Discovered new exit (range 13) 16390 | -5/Upper Caves | Identified exit to Upper Caves 16391 | -5/Upper Caves | Entered another Upper Caves area 16561 | -5/Upper Caves | Build established: Hacker-Tank 16653 | -5/Upper Caves | Attacked by a faux Warlord 16673 | -5/Upper Caves | Attracted the attention of an 0b10 checkpoint 16712 | -5/Upper Caves | Lost 4 parts (1n3w) 16893 | -5/Upper Caves | Learned Factory emergency access door positions 16943 | -5/Upper Caves | Learned 4 Factory zone layouts 16992 | -5/Upper Caves | Build established: Scavenger-Gunner 17012 | -5/Upper Caves | Discovered new exit (range 10) 17020 | -5/Upper Caves | Identified exit to Zhirov 17021 | -5/Upper Caves | Entered Zhirov 17021 | -5/Zhirov | Discovered new exit (range 3) 17054 | -5/Zhirov | Learned location of Quarantine (-2) 17086 | -5/Zhirov | Found Alien Artifact 17086 | -5/Zhirov | Identified Integrated Dissipator 17086 | -5/Zhirov | Installed Integrated Dissipator, increased core heat dissipation (+20) 17260 | -5/Zhirov | Identified exit to Proximity Caves 17261 | -5/Zhirov | Entered Proximity Caves 17284 | -4/Proximity Caves | Spotted B-86 Titan 17286 | -4/Proximity Caves | Core integrity fell below 50% 17297 | -4/Proximity Caves | Destroyed B-86 Titan 17368 | -4/Proximity Caves | Build established: Scavenger-Tank 17418 | -4/Proximity Caves | Attracted the attention of an 0b10 checkpoint 17435 | -4/Proximity Caves | Spotter reported a threat 17454 | -4/Proximity Caves | Spotter reported a threat 17998 | -4/Proximity Caves | Discovered exit to Factory (range 15) 18018 | -4/Proximity Caves | Entered Factory 18018 | -4/Factory | Evolved 2 slots: Weapon x2 18019 | -4/Factory | Identified exit to Research 18077 | -4/Factory | Watched by a mysterious "MATRIX" hacker. 18268 | -4/Factory | Search patrols dispatched 18331 | -4/Factory | Spotted B-86 Titan 18350 | -4/Factory | Destroyed B-86 Titan 18414 | -4/Factory | Build established: Scavenger-Executioner 18426 | -4/Factory | Scrapoid reinforcements arrived 18426 | -4/Factory | Garrison activated, responded to threat 18462 | -4/Factory | Spotted B-86 Titan 18478 | -4/Factory | Lost 5 allies 18494 | -4/Factory | Destroyed B-86 Titan 18514 | -4/Factory | Lost 4 parts (2u2w) 18518 | -4/Factory | Found Scrap Suit 18753 | -4/Factory | Sucked down chute 18753 | -4/Factory | Entered Waste 18762 | -4/Waste | Spotted C-40 Crusher 18772 | -4/Waste | Destroyed C-40 Crusher 18787 | -4/Waste | Spotted C-40 Crusher 18794 | -4/Waste | Attached CPS modules to C-40 Crusher. 18802 | -4/Waste | Spotted C-40 Crusher 18804 | -4/Waste | Destroyed C-40 Crusher 18804 | -4/Waste | Spotted C-40 Crusher 18832 | -4/Waste | Destroyed C-40 Crusher 18849 | -4/Waste | Attached CPS modules to C-40 Crusher. 18948 | -4/Waste | Spotted C-40 Crusher 18948 | -4/Waste | Destroyed C-40 Crusher 18986 | -4/Waste | Destroyed C-40 Crusher 19116 | -4/Waste | Spotted C-40 Crusher 19135 | -4/Waste | Destroyed C-40 Crusher 19194 | -4/Waste | Discovered new exit (range 13) 19252 | -4/Waste | Warlord forces began an assault 19448 | -4/Waste | Entered Factory 19448 | -4/Factory | Accompanied by 15 allies 19583 | -4/Factory | Repaired Hvy. Antimatter Reactor 19701 | -4/Factory | Lost 4 allies 19840 | -4/Factory | Spotted B-86 Titan 19906 | -4/Factory | Destroyed B-86 Titan 19929 | -4/Factory | Lost 7 allies 20004 | -4/Factory | Identified exit to Upper Caves 20405 | -4/Factory | Learned Testing trap positions 20449 | -4/Factory | Learned 8 Research zone layouts 20503 | -4/Factory | Learned Testing stockpile data 20652 | -4/Factory | Loaded intel: 8 recycling unit locations 20948 | -4/Factory | First assault squad dispatched 21064 | -4/Factory | Entered Upper Caves 21371 | -4/Upper Caves | Build established: Derelict-Executioner 21566 | -4/Upper Caves | Found Alien Artifact 21566 | -4/Upper Caves | Identified Core Expander 21566 | -4/Upper Caves | Installed Core Expander, added new Utility slot 21620 | -4/Upper Caves | Attracted the attention of an 0b10 checkpoint 21868 | -4/Upper Caves | Discovered new exit (range 15) 22084 | -4/Upper Caves | Entered another Upper Caves area 22251 | -4/Upper Caves | Discovered exit to Research (range 7) 22282 | -4/Upper Caves | Spotted B-86 Titan 22492 | -4/Upper Caves | Destroyed B-86 Titan 22537 | -4/Upper Caves | Learned Research stockpile data 23284 | -4/Upper Caves | Attacked by a delusional Derelict stockpiling parts 23435 | -4/Upper Caves | Discovered new exit (range 12) 23586 | -4/Upper Caves | Entered Warlord 23613 | -4/Warlord | Discovered new exit (range 22) 23646 | -4/Warlord | System corruption cleaned by Quarantine Array 23969 | -4/Warlord | Warlord's base attacked by MAIN.C 24009 | -4/Warlord | Found Prototype Energy Gun 24009 | -4/Warlord | Identified Vortex Shotgun 24020 | -4/Warlord | Found Prototype Energy Cannon 24020 | -4/Warlord | Identified Vortex Driver 24031 | -4/Warlord | Found Vortex Driver 24047 | -4/Warlord | Build established: Executioner 24207 | -4/Warlord | Found Prototype Processor 24207 | -4/Warlord | Identified Exp. Armor Integrity Analyzer 24211 | -4/Warlord | Found Prototype Device 24211 | -4/Warlord | Identified Thermal Barrier 24319 | -4/Warlord | Warlord forces counterattacked 24491 | -4/Warlord | Opened side exit 24539 | -4/Warlord | Entered Proximity Caves 24874 | -3/Proximity Caves | Spotted B-86 Titan 24883 | -3/Proximity Caves | Spotter reported a threat 24909 | -3/Proximity Caves | Destroyed B-86 Titan 25491 | -3/Proximity Caves | Build established: Gunner 25588 | -3/Proximity Caves | Discovered exit to Research (range 13) 25788 | -3/Proximity Caves | Entered Research 25788 | -3/Research | Evolved 2 slots: Utility x2 25789 | -3/Research | Identified exit to Armory 25912 | -3/Research | Spotted B-86 Titan 25988 | -3/Research | Revision forces began assault on 0b10 25993 | -3/Research | Lost 7 parts (2n3u2w) 26021 | -3/Research | Met up with Revision 17++ 26069 | -3/Research | Identified exit to Testing 26219 | -3/Research | Scrapoids reinforcements arrived? 26338 | -3/Research | Found Scrap Suit 26441 | -3/Research | Loaded intel: 5 recycling unit locations 26488 | -3/Research | Research terminal network offline 26535 | -3/Research | Found Prototype Hackware 26535 | -3/Research | Identified Exp. Hacking Suite 26562 | -3/Research | Found Exp. Signal Interpreter 26673 | -3/Research | Found Prototype Device 26673 | -3/Research | Identified Exp. Shield Generator 26827 | -3/Research | Build established: Scavenger-Scrapper 26871 | -3/Research | Spotted Striker 26879 | -3/Research | Destroyed Striker 26903 | -3/Research | Spotted Executioner 26906 | -3/Research | Lost 3 allies 26912 | -3/Research | Destroyed Executioner 26936 | -3/Research | Found Prototype Processor 26936 | -3/Research | Identified Exp. Targeting Computer 27157 | -3/Research | Found Prototype Launcher 27157 | -3/Research | Identified Tesla Bomb Launcher 27224 | -3/Research | Spotted Executioner 27241 | -3/Research | Destroyed Executioner 27241 | -3/Research | Spotted Striker 27246 | -3/Research | Destroyed Striker 27253 | -3/Research | Found Prototype Processor 27253 | -3/Research | Identified Exp. Core Analyzer 27415 | -3/Research | Spotted Striker 27422 | -3/Research | Destroyed Striker 27547 | -3/Research | Build established: Scavenger-Executioner 28146 | -3/Research | Spotted Striker 28146 | -3/Research | Entered Testing 28147 | -3/Testing | Loaded intel: 15 trap records 28213 | -3/Testing | Found Prototype Reactor 28213 | -3/Testing | Identified Zero-point Reactor 28217 | -3/Testing | Found Zero-point Reactor 28218 | -3/Testing | Found Prototype Device 28218 | -3/Testing | Identified Exp. Phase Shifter 28237 | -3/Testing | Found Exp. Targeting Computer 28570 | -3/Testing | Build established: Scavenger-Assassin 28724 | -3/Testing | Discovered new exit (range 15) 28839 | -3/Testing | Found Prototype Energy Gun 28839 | -3/Testing | Identified Hyp. EM Gauss Rifle 28868 | -3/Testing | Identified exit to Research 28944 | -3/Testing | Found Prototype Energy Cannon 28944 | -3/Testing | Identified Cld. Nova Cannon 29128 | -3/Testing | Central database locked down 29144 | -3/Testing | Build established: Scavenger-Executioner 29770 | -3/Testing | Rewired PG-ES7U3OY7M9 29775 | -3/Testing | Protovariant out of control (PG-ES7U3OY7M9) 29797 | -3/Testing | Found Prototype Energy Cannon 29797 | -3/Testing | Identified Potential Cannon 29953 | -3/Testing | Spotted PG-ES7U3OY7M9 29998 | -3/Testing | Found Corrupted Prototype Device 29998 | -3/Testing | Identified Exp. Thermal Shield 30162 | -3/Testing | Scanned by Researcher 30162 | -3/Testing | Destroyed Investigator 30498 | -3/Testing | Entered Research 30498 | -2/Research | Evolved 2 slots: Power x1, Utility x1 30568 | -2/Research | Identified exit to Quarantine 30681 | -2/Research | Targeted by mysterious "MATRIX" hacker. 31018 | -2/Research | Spotted B-90 Cyclops 31042 | -2/Research | Destroyed B-90 Cyclops 31101 | -2/Research | Destroyed 15 combat bots 31104 | -2/Research | Lost 6 parts (1p1n1u3w) 31248 | -2/Research | First assault squad dispatched 31280 | -2/Research | Destroyed 7 combat bots 31305 | -2/Research | Released all parts (12) 31318 | -2/Research | Core integrity fell below 50% 31321 | -2/Research | System corruption reached 10% 31339 | -2/Research | Discovered new exit (range 16) 31345 | -2/Research | Entered Access 31345 | -1/Access | Evolved 2 slots: Propulsion x2 31360 | -1/Access | Lost 10 parts (1p2n1u6w) 31564 | -1/Access | Lost 3 parts (1n2u) 31652 | -1/Access | Lost 4 parts (3n1w) 31687 | -1/Access | Core integrity fell below 50% 31693 | -1/Access | Core integrity fell below 20% 31702 | -1/Access | Destroyed by H-88 Terminator with KE Penetrator Last Messages --------------- 31695_ Penetrated by Slug. 31695_ Slug penetrates Door. 31695_ Slug penetrates Wall. 31697_ Wall collapses. 31697_ Penetrated by Slug. 31697_ Slug penetrates Q147-p. 31697_ Slug penetrates Wall. 31697_ Q147-p Biometal Leg severed. 31698_ Penetrated by Slug. 31698_ Slug penetrates Wall. 31698_ Penetrated by Slug. 31699_ Wall collapses. 31699_ Slug penetrates Q273-i. 31700_ Penetrated by Slug. 31700_ Slug penetrates Earth. 31701_ Slug penetrates Wall. 31701_ Penetrated by Slug. 31701_ Biometal Leg destroyed. 31701_ Slug penetrates Earth. 31702_ Penetrated by Slug. Map ----- +----------------------------------------------------+ | ] / #####?## #?# #???# # | | # " #??????# #?# #?#?# # | | # """ #??????# "" #?# #???# # | | ## ######### """ #??????#""" #?? #???# # | | ?# #???????# " #??????#"R #?? #???# # | | ?# #???????# #??????#""" #?? #???#+#### | | ?# #???????#* #??????#""" #?? #????????? | | ?# #???????# #??????# #?? #????????? | | ?# #?????############??????# #?? ?????????? | | ?# #????? +?????????????#"#########?? ?????????? | | ?# #????# #?????????????##?????????????????????? | | ?# #????# #????????????????????????????????????? | | ?# ##+### #????????????????????????????????????? | | ?# +????????????????????????????????????? | | ?# #???????????###########??????????????? | | ## #???????????# " #??????????????? | | "" #???????????# """ #??????????????? | | "" #???????????# """ #??????????????? | | "Y #???????????# " #??????????????? | | "" #???????????# #??????????????? | | "" ####????????# #??????????????? | | #????????# ????????????????? | | #?????????? ??????????????????? | | ############;+###?????????????????? | | ## h Q% ##????????????????? | | ?# Q@[ ;#????????????????? | | ?# u = ##????????????????? | | ?# ########+########;#;;#?????????????????? | | ?# #??????# ??????#####?????????????????? | | ?# #??????# ??????????????????????????? | | ?# #??????# ????????????????????????? | | ?# #??????# #???????????????????????? | | ?# #??????# #???????????????????????? | | ?# #??????# * #???????????????????????? | | ?# #??????# #???????????????????????? | | ?# ???????# #???????????????????????? | | ?? ????????########???????????????????????? | | ???? ? ???????????????????????????????????????? | | ????????#????????????????????????????????????????? | | ?????????????????????????????????????????????????? | | ?????????????????????????????????????????????????? | | ?????????????????????????????????????????????????? | | ?????????????????????????????????????????????????? | | ?????????????????????????????????????????????????? | | ?????????????????????????????????????????????????? | | ?????????????????????????????????????????????????? | | ?????????????????????????????????????????????????? | | ?????????????????????????????????????????????????? | | ?????????????????????????????????????????????????? | | ?????????????????????????????????????????????????? | +----------------------------------------------------+ Best States ------------- Heat Dissipation 113 Coolant Potential 120 Energy Generation 51 Energy Capacity 775 Matter Stores 314 Matter Capacity 600 Sight Range 20 Robot Scan Range 16 Terrain Scan Range 24 Terrain Scan Density 210 Power Amplification 40 Armor Coverage 1800 Resistance: KI 30 Resistance: TH 50 Power Shielding 90 Weapon Cycling 30 Phase Shifting 20 Evasion (%) 62 Targeting Accuracy 24 Target Analysis 12 Core Analysis 8 Recoil Reduction 4 Kinecelleration 40 Force Boost 20 Offensive Hacking 30 Defensive Hacking 14 Item Schematics ----------------- Multitool | -6/Factory | Scanalyzed Com. HERF Cannon | -5/Factory | Hacked Assault Drone Bay | -5/Zhirov | Free Exp. Heat Sink | -5/Zhirov | Free Exp. Optical Array | -5/Zhirov | Free Imp. Arc Thrower | -5/Zhirov | Free Exp. Coolant Injector | -3/Research | Scanalyzed Adv. System Restoration Module | -3/Research | Scanalyzed Adv. KE Penetrator | -3/Testing | Archive Exp. Power Amplifier | -3/Testing | Archive Electron Diverter | -3/Testing | Archive Robot Schematics ------------------ M-28 Smith | -6/Factory | Hacked R-10 Processor | -3/Testing | Archive R-06 Scavenger | -3/Testing | Archive Fabricated ------------ M-28 Smith | x1 | -5/Factory Repaired ---------- Centrium Medium Armor Plating | 31% | -5/Factory Adv. KE Penetrator | 17% | -5/Factory Hvy. Antimatter Reactor | 36% | -4/Factory Studied --------- Cmb. Airjet | -6/Factory | Hacked Coil Gun | -4/Factory | Hacked Com. Wheel | -3/Research | Hacked Railgun | -3/Research | Hacked Wheel | -3/Research | Hacked Lgt. Antimatter Reactor | -3/Research | Hacked Hyp. Railgun | -3/Research | Hacked Com. HERF Cannon | -3/Testing | Hacked Centrium Wheel | -3/Testing | Hacked Alien Tech Used ----------------- Integrated Dissipator Core Expander Achievements -------------- Hard Hitter Hulk Smash Loot Taster Low-level Research Max Potential Maximum Efficiency Overclocked Suspicious Tailor-made Challenges ------------ None Game ------ Seed DynamicDisintegrationRigger Manual? 0 Play Time 04:54:32 Cumulative 370.5 hours Start 2026.03.27 @ 03:00:56 End 2026.03.28 @ 22:08:06 Sessions 15 Manual Loads 0 Difficulty Rogue Special Mode None Game No. 299 Rogue 263 Adventurer 36 Explorer 0 Win Type - Total 5 Types 2/0/0/1/0/0/0/2/0/0 Lore% 68 Gallery% 65 Achievement% 54 Wizard Run 0 Options --------- Layout 1 ASCII 0 Keyboard 0 Movement Numpad Keybinds 0 Fullscreen 1 Font 48/Smallcaps Map View 50x35 Zoom Use 0% Tactical HUD 1 Map Filters NONE Filters NONE Steam 1 RUN: 7b64f145-1843-4ce7-89a9-023c48972a52